Workbook

Sheet Calculator
F1: English | G1: Nederlands
F2: =IF($I$2="Nederlands","Gekozen Taal","Choosen Language") -> Choosen Language | I2: English
B4: =IF($I$2="Nederlands","*** Dutch Synthetic Reefing *** ( de DSR Methode ) ***","*** Dutch Synthetic Reefing *** ( The DSR Method ) ***") -> *** Dutch Synthetic Reefing *** ( The DSR Method ) *** | D4: =IF($I$2="Nederlands","Gebruikers naam:","Name user :") -> Name user : | F4: New tank | I4: vers.190304 compact
B5: =IF($I$2="Nederlands","DSR Mineralen Calculator by GlennF","DSR Minerals Calculator by GlennF") -> DSR Minerals Calculator by GlennF | D5: =IF($I$2="Nederlands","welke handeling ? ","What action ? ") -> What action ? | F5: Correction | I5: =IF($I$2="Nederlands","Laatste aanpassing","Last saved date") -> Last saved date
B6: =IF($I$2="Nederlands"," Water volume voor Calculaties ( in liters )","Water volume for Calculations ( in liters )") -> Water volume for Calculations ( in liters ) | C6: 100 | I6: =TODAY() -> 2021-07-18 | J6: =IF($I$2="Nederlands","Maximale dag correcties","Maximum day corrections") -> Maximum day corrections | L6: =IF($I$2="Nederlands","Auto doseer oplossingen","Auto dosing Solutions") -> Auto dosing Solutions
B7: =IF($I$2="Nederlands","Meting / Range / max. Verhoging/dag / Test set / interval","Measurement / Range / max.TopUp/day / Used test / Test interval") -> Measurement / Range / max.TopUp/day / Used test / Test interval | D7: =IF($I$2="Nederlands","gemeten waarde","Measured value") -> Measured value | E7: =IF($I$2="Nederlands","Target waarde","Target value") -> Target value | F7: =IF($I$2="Nederlands","Correctie waarden","Correction") -> Correction | G7: =IF($I$2="Nederlands","Nieuwe aanmaak","New water") -> New water | I7: =IF($I$2="Nederlands","eenheid / Grondstof","Units / Product") -> Units / Product | J7: =IF($I$2="Nederlands","Aantal dagen te doseringen","Total days to dose") -> Total days to dose | K7: =IF($I$2="Nederlands","Dag dosering ","Single day dosing ") -> Single day dosing | L7: =IF($I$2="Nederlands"," (extra) verbruik deze periode (ml) ","(additional) consumption this period (ml)") -> (additional) consumption this period (ml) | M7: Default target
B8: =IF($I$2="Nederlands","Osmose water vereiste bij nieuwe aanmaak","RO water required when mixing new water") -> RO water required when mixing new water | F8: =IF(AND(OR($F$5="Correction",$F$5="Correctie Waarden"),$D$9="x"),"No Data",IF(OR($F$5="Correctie Waarden",$F$5="Correction"),"","")) ->  | G8: =IF(OR($F$5="Correction",$F$5="Correctie Waarden"),"",($C$6)*(1-0.0166)) ->  | I8: =IF($I$2="Nederlands","Liters / Osmose water","Liters / RO Water") -> Liters / RO Water
B9: =IF($I$2="Nederlands","PH: (Target 7,95-8,2) Gebruik bij voorkeur 24/7 een electronische meter.","PH: (Target 7,95-8,2) preferably 24/7 electronic measurement ") -> PH: (Target 7,95-8,2) preferably 24/7 electronic measurement | C9: 10:40:00 | D9: 7.8 | E9: 8.3 | F9: =IF(AND(OR($F$5="Correction",$F$5="Correctie Waarden"),$D$9="x"),"No Data",IF(OR($F$5="Correctie Waarden",$F$5="Correction"),"","")) ->  | G9: =IF(OR($F$5="Correction",$F$5="Correctie Waarden"),"","---------") ->  | I9: =IF(AND(OR($F$5="Correction",$F$5="Correctie Waarden"),$D$9="x"),"No Data",IF(AND(OR($F$5="Correction",$F$5="Correctie Waarden"),$D$9>7.69)," ","Use PH+ for Autodosing")) ->  | J9: - | K9: auto | M9: 8.3
B10: =IF($I$2="Nederlands","Saliniteit: (Target 33-34ppt) – (max. 2ppt/dag) - Refractometer - 4wkn.","Salinity: (Target 33-34ppt) – (max. 2ppt/day) – Refractometer - 4wks") -> Salinity: (Target 33-34ppt) – (max. 2ppt/day) – Refractometer - 4wks | D10: 33.2 | E10: 33 | F10: =IF(AND(OR($F$5="Correction",$F$5="Correctie Waarden"),$D$10="x"),"No Data",IF(OR($F$5="Correction",$F$5="Correctie Waarden"),($C$6/100)*($E10-$D10)*100,"")) -> -20 | G10: =IF(OR($F$5="Correction",$F$5="Correctie Waarden"),"",($C$6/100)*($E10-0)*100*(27.2656/35)) ->  | I10: =IF($I$2="Nederlands","g / NaCl+ . pure zout","g / NaCl+ . pure Salt") -> g / NaCl+ . pure Salt | J10: =ROUNDUP((E10-D10)/2,0) -> -1 | K10: =IF(F10="",0,F10/J10) -> 20 | M10: 33
B11: =IF($I$2="Nederlands","KH: (Target 7-9) – (max. 1dKH/dag) - Salifert KH - wekelijks!","KH: (Target 7-9) – (max. 1dKH/day) - Salifert KH - weekly!") -> KH: (Target 7-9) – (max. 1dKH/day) - Salifert KH - weekly! | D11: 7.6 | E11: 9 | F11: =IF(AND(OR($F$5="Correction",$F$5="Correctie Waarden"),$D$11="x"),"No Data",IF(OR($F$5="Correction",$F$5="Correctie Waarden"),($C$6/100)*($E11-$D11)*3,"")) -> 4.2 | G11: =IF(OR($F$5="Correction",$F$5="Correctie Waarden"),"",($C$6/100)*($E11-0)*3) ->  | I11: =IF($I$2="Nederlands","g / KH+ ... NaHCO3*","g / KH+ . SodiumBicarbonate*") -> g / KH+ . SodiumBicarbonate* | J11: =ROUNDUP((E11-D11)/1,0) -> 2 | K11: =IF(F11="",0,F11/J11) -> 2.1 | L11: =IF(AND(OR($F$5="Correction",$F$5="Correctie Waarden"),$D$11="x"),"No Data",IF(OR($F$5="Correction",$F$5="Correctie Waarden"),($C$6/100)*($E11-$D11)*3*11.1,"")) -> 46.62 | M11: 8
B12: =IF($I$2="Nederlands","Ca: (Target 420-460) – (max. 20ppm/dag) - Salifert Ca - wekelijks!","Ca: (Target 420-460) – (max. 20ppm/day) - Salifert Ca - weekly!") -> Ca: (Target 420-460) – (max. 20ppm/day) - Salifert Ca - weekly! | D12: 415 | E12: 440 | F12: =IF(AND(OR($F$5="Correction",$F$5="Correctie Waarden"),$D$12="x"),"No Data",IF(OR($F$5="Correction",$F$5="Correctie Waarden"),($C$6/100)*($E12-$D12)*0.3668,"")) -> 9.17 | G12: =IF(OR($F$5="Correction",$F$5="Correctie Waarden"),"",($C$6/100)*($E12-0)*0.3668) ->  | I12: =IF($I$2="Nederlands","g / Ca+ ... CaCl2*2H2O","g / Ca+ . CalciumChloride") -> g / Ca+ . CalciumChloride | J12: =ROUNDUP((E12-D12)/20,0) -> 2 | K12: =IF(F12="",0,F12/J12) -> 4.585 | L12: =IF(AND(OR($F$5="Correction",$F$5="Correctie Waarden"),$D$12="x"),"No Data",IF(OR($F$5="Correction",$F$5="Correctie Waarden"),($C$6/100)*($E12-$D12)*0.3668*1.429,"")) -> 13.10393 | M12: 440
B13: =IF($I$2="Nederlands","Mg: (Target 1300-1400) – (max. 50ppm/dag) - Salifert Mg - 4wkn","Mg: (Target 1300-1400) – (max. 50ppm/day) - Salifert Mg - 4wks") -> Mg: (Target 1300-1400) – (max. 50ppm/day) - Salifert Mg - 4wks | D13: x | E13: 1350 | F13: =IF(AND(OR($F$5="Correction",$F$5="Correctie Waarden"),$D$13="x"),"No Data",IF(OR($F$5="Correction",$F$5="Correctie Waarden"),($C$6/100)*($E13-$D13)*0.836,"")) -> No Data | G13: =IF(OR($F$5="Correction",$F$5="Correctie Waarden"),"",(($C$6/1000)*($E13-($G$14/$C$6)*1000*(24.31/246.482))*(203.306/24.31))) ->  | I13: =IF($I$2="Nederlands","g / Mg+ ... MgCl2*6H2O","g / Mg+ . MagnesiumChloride") -> g / Mg+ . MagnesiumChloride | J13: =ROUNDUP((E13-D13)/50,0) ->  | K13: =IF(F13="",0,F13/J13) ->  | L13: =IF(AND(OR($F$5="Correction",$F$5="Correctie Waarden"),$D$13="x"),"No Data",IF(OR($F$5="Correction",$F$5="Correctie Waarden"),($C$6/100)*($E13-$D13)*0.836*1.33,"")) -> No Data | M13: 1350
B14: =IF($I$2="Nederlands","Mg+Sulfaat: (alleen bij nieuw aanmaak gewenst)","Mg+Sulfate: (only to be used when mixing new water)") -> Mg+Sulfate: (only to be used when mixing new water) | D14: x | E14: 904 | F14: =IF(AND(OR($F$5="Correction",$F$5="Correctie Waarden"),$D$13="x"),"No Data",IF(OR($F$5="Correction",$F$5="Correctie Waarden"),($C$6/100)*($E13-$D13)*0.836*0,"")) -> No Data | G14: =IF(OR($F$5="Correction",$F$5="Correctie Waarden"),"",($C$6/1000)*($E14-0)*(246.482/32.06)) ->  | I14: =IF($I$2="Nederlands","g / ....... MgSO4","g / ....... MagnesiumSulphate") -> g / ....... MagnesiumSulphate | M14: 904
B15: =IF($I$2="Nederlands","Kalium: (Target 380-420) – (20ppm/d) - RedSea Potass. - 8wkn","Potassium: (Target 380-420) – (20ppm/d) - RedSea Potass. - 8wks") -> Potassium: (Target 380-420) – (20ppm/d) - RedSea Potass. - 8wks | D15: x | E15: 390 | F15: =IF(AND(OR($F$5="Correction",$F$5="Correctie Waarden"),$D$15="x"),"No Data",IF(OR($F$5="Correction",$F$5="Correctie Waarden"),($C$6/100)*($E15-$D15)*0.667,"")) -> No Data | G15: =IF(OR($F$5="Correction",$F$5="Correctie Waarden"),"",($C$6/100)*($E15-0)*0.667*1) ->  | I15: =IF($I$2="Nederlands","ml / K+... Vloeistof","ml / K+... Liquid") -> ml / K+... Liquid | J15: =ROUNDUP((E15-D15)/20,0) ->  | K15: =IF(F15="",0,F15/J15) ->  | M15: 390
B16: =IF($I$2="Nederlands","Strontium: (Target 3-10) – (3ppm/dag) - Salifert Sr - (50:1 CaSr=12wkn)","Strontium: (Target 3-10) – (3ppm/day) - Salifert Sr - (50:1 CaSr=12wks)") -> Strontium: (Target 3-10) – (3ppm/day) - Salifert Sr - (50:1 CaSr=12wks) | D16: x | E16: 8 | F16: =IF(AND(OR($F$5="Correction",$F$5="Correctie Waarden"),$D$16="x"),"No Data",IF(OR($F$5="Correction",$F$5="Correctie Waarden"),($C$6/100)*($E16-$D16)*3.04,"")) -> No Data | G16: =IF(OR($F$5="Correction",$F$5="Correctie Waarden"),"",($C$6/100)*($E16-0)*3.04) ->  | I16: ml / Sr+ .... Strontium | J16: =ROUNDUP((E16-D16)/3,0) ->  | K16: =IF(F16="",0,F16/J16) ->  | M16: 8
B17: =IF($I$2="Nederlands","Boor: (Target 3,5-4,4) (2ppm/dag) - Salifert Borium - 12wkn","Boron: (Target 3,5-4,4) (2ppm/day) - Salifert Borium - 12wks") -> Boron: (Target 3,5-4,4) (2ppm/day) - Salifert Borium - 12wks | D17: x | E17: 4 | F17: =IF(AND(OR($F$5="Correction",$F$5="Correctie Waarden"),$D$17="x"),"No Data",IF(OR($F$5="Correction",$F$5="Correctie Waarden"),($C$6/100)*($E17-$D17)*12.68,"")) -> No Data | G17: =IF(OR($F$5="Correction",$F$5="Correctie Waarden"),"",($C$6/100)*($E17-0)*12.68) ->  | I17: =IF($I$2="Nederlands","ml / B+ ..... Boor","ml / B+ ..... Boron") -> ml / B+ ..... Boron | J17: =ROUNDUP((E17-D17)/2,0) ->  | K17: =IF(F17="",0,F17/J17) ->  | M17: 4
B18: =IF($I$2="Nederlands","Jodide: (Target 0,06) – (0,03ppm/dag) - Salifert I - (0,006ppm/d=8wkn)","Iodide: (Target 0,06) – (0,03ppm/day) - Salifert I - (0,006ppm/d=8wks)") -> Iodide: (Target 0,06) – (0,03ppm/day) - Salifert I - (0,006ppm/d=8wks) | D18: x | E18: 0.06 | F18: =IF(AND(OR($F$5="Correction",$F$5="Correctie Waarden"),$D$18="x"),"No Data",IF(OR($F$5="Correction",$F$5="Correctie Waarden"),($C$6/100)*($E18-$D18)*100*0.26,"")) -> No Data | G18: =IF(OR($F$5="Correction",$F$5="Correctie Waarden"),"",($C$6/100)*($E18-0)*100*0.26) ->  | I18: =IF($I$2="Nederlands","ml / I+ ...... Jodide","ml / I+ ...... Iodide") -> ml / I+ ...... Iodide | J18: =ROUNDUP((E18-D18)/0.03,0) ->  | K18: =IF(F18="",0,F18/J18) ->  | M18: 0.06
B19: =IF($I$2="Nederlands","Mangaan (ppb): (Target 0,4ppb) – (doseren 0,1ppb/dag) - ","Manganese (ppb): (Target 0,4ppb) – (dosing 0,1ppb/day) - ") -> Manganese (ppb): (Target 0,4ppb) – (dosing 0,1ppb/day) - | D19: x | E19: 0.4 | F19: =IF(AND(OR($F$5="Correction",$F$5="Correctie Waarden"),$D$19="x"),"No Data",IF(OR($F$5="Correction",$F$5="Correctie Waarden"),($C$6/100)*($E19-$D19)*10*0.1,"")) -> No Data | G19: =IF(OR($F$5="Correction",$F$5="Correctie Waarden"),"",($C$6/100)*($E19-0)*10*0.1*0) ->  | I19: =IF($I$2="Nederlands","ml / Mn+ ( ppb ).. Mangaan","ml / Mn+ ( ppb ) .. Manganese") -> ml / Mn+ ( ppb ) .. Manganese | M19: 0.4
B20: =IF($I$2="Nederlands","Fosfaat: (Target 0,04-0,08) (0,04ppm/d) - RedSea PO4 - wekelijks!","Phosphate: (Target 0,04-0,08) (0,04ppm/d) - RedSea PO4 - weekly!") -> Phosphate: (Target 0,04-0,08) (0,04ppm/d) - RedSea PO4 - weekly! | D20: 0 | E20: 0.08 | F20: =IF(AND(OR($F$5="Correction",$F$5="Correctie Waarden",$F$5="New water",$F$5="Nieuwe aanmaak"),$D$20="x"),"No Data",IF(AND(OR($F$5="Correction",$F$5="Correctie Waarden",$F$5="New water",$F$5="Nieuwe aanmaak"),$D$20>$E$20),($C$6/100)*(0.15)*10*0.4975,($C$6/100)*($E20-$D20)*100*0.1)) -> 0.8 | G20: =IF(OR($F$5="Correction",$F$5="Correctie Waarden"),"",($C$6/100)*($E20-0)*100*0.1*0) ->  | I20: =IF(AND(OR($F$5="New water",$F$5="Nieuwe aanmaak"),$D$20="x"),"No Data",IF(AND(OR($F$5="Correction",$F$5="Correctie Waarden",$F$5="New water",$F$5="Nieuwe aanmaak"),$D$20>$E20),"ml / Fe+** 0,15ppm max.dosing.","ml / PO4+ .. Phosphate**")) -> ml / PO4+ .. Phosphate** | J20: 1 | K20: =IF($I$2="Nederlands","tabel","table") -> table | L20: =IF(AND(OR($F$5="New water",$F$5="Nieuwe aanmaak"),$D$20="x"),"",IF(AND(OR($F$5="Correction",$F$5="Correctie Waarden",$F$5="New water",$F$5="Nieuwe aanmaak"),$D$20<0.11,$D$20>0.01),"","< Alarm!")) -> < Alarm! | M20: 0.04
B21: =IF($I$2="Nederlands","Nitraat (rev.2019): (Target 1-3) (2ppm/d) - Salifert NO3 - 3wkn","Nitrate (rev.2019): (Target 1-3) (2ppm/d) - Salifert NO3 - 3wks") -> Nitrate (rev.2019): (Target 1-3) (2ppm/d) - Salifert NO3 - 3wks | C21: 2xNO3+ | D21: 0 | E21: 2.5 | F21: =IF(AND(OR($F$5="Correction",$F$5="Correctie Waarden",$F$5="New water",$F$5="Nieuwe aanmaak"),$D$21="x"),"No Data",IF(AND(OR($F$5="Correction",$F$5="Correctie Waarden"),$D$21>$E$21),"-----",($C$6/100)*($E21-$D21)*(0.8))) -> 2 | G21: =IF(OR($F$5="Correction",$F$5="Correctie Waarden"),"",($C$6/100)*($E21-0)*(0.8)*0) ->  | I21: =IF(AND(OR($F$5="Correction",$F$5="Correctie Waarden"),$D$21="x"),"No Data",IF(AND(OR($F$5="Correction",$F$5="Correctie Waarden"),$D$21>$E$21),". use CarbonVS table to reduce***.","ml / 2xNO3+ . Nitrate NEW!!!")) -> ml / 2xNO3+ . Nitrate NEW!!! | J21: 1 | K21: =IF($I$2="Nederlands","tabel","table") -> table | L21: =IF(AND(OR($F$5="New water",$F$5="Nieuwe aanmaak"),$D$21="x"),"",IF(AND(OR($F$5="Correction",$F$5="Correctie Waarden",$F$5="New water",$F$5="Nieuwe aanmaak"),$D$21<6,$D$21>0.4),"","< Alarm!")) -> < Alarm! | M21: 2.5
B22: =IF($I$2="Nederlands","Ijzer: (Piek waarde, geen streefwaarde) - Sera Fe - 8wkn","Iron: (Peek value, not target value) - Sera Fe - 8wks") -> Iron: (Peek value, not target value) - Sera Fe - 8wks | D22: 0 | E22: =IF($D$20>$E$20,"0,15","0,02") -> 0,02 | F22: =IF(AND(OR($F$5="Correction",$F$5="Correctie Waarden"),$D$22="x"),"No Data",IF(OR($F$5="Correction",$F$5="Correctie Waarden"),($C$6/100)*(VALUE($E22)-$D22)*10*0.4975,"")) -> 0.0995 | G22: =IF(OR($F$5="Correction",$F$5="Correctie Waarden"),"",($C$6/100)*(VALUE($E22)-0)*10*0.4975) ->  | I22: =IF($I$2="Nederlands","ml / Fe+ .... Ijzer** ","ml / Fe+ .... Iron**") -> ml / Fe+ .... Iron** | J22: 1 | K22: =IF($I$2="Nederlands","geleidelijk","gradually") -> gradually | M22: =IF($D$20>$E$20,"0,15","0,02") -> 0,02
B23: first measurement after start of tank | G23: =IF($I$2="Nederlands","Verlichtings type en samenstelling:","Lighting type and composition:") -> Lighting type and composition:
G24: =IF($I$2="Nederlands","geef aan wanneer de lampen zijn aangebracht en/of vervangen:","please mention when the fixture/lamps were placed or renewed:") -> please mention when the fixture/lamps were placed or renewed:
B26: =IF($I$2="Nederlands","- Beveiliging: Het werkblad is beveiligd om onbedoeld overschijven van de velden en formules te voorkomen. De gele cellen dienen nagelopen en eventueel aangepast te worden. "&" Wanneer je een waarde niet gemeten hebt, plaats een 'x' dit geef een melding 'No Data'. Dit voorkomt fouten bij het toedienen en verschaft duidelijkheid als je een screenprint maakt voor support.","- Protection: The worksheet is protected against accidental deleting of the formulas. Only the yellow fields are editable. "&" To prevent misinterpretation fill in a 'x' when you did not measure the value. This wil show the messsage 'No Data'. This prevent mistakes when dosing and is useful when making a screenprint for support purpose.") -> - Protection: The worksheet is protected against accidental deleting of the formulas. Only the yellow fields are editable. To prevent misinterpretation fill in a 'x' when you did not measure the value. This wil show the messsage 'No Data'. This prevent mistakes when dosing and is useful when making a screenprint for support purpose.
B27: =IF($I$2="Nederlands","* KH+ nooit gelijktijdig met andere zouten (Ca,Mg,K,Sr) toevoegen ter voorkoming van neerslag . Toevoegen als alle zouten volledig zijn opgelost.","* KH+ may only be added after all salts are fully dissolved (Ca,Mg,K,Sr). This is to prevent precipitation of chalk.") -> * KH+ may only be added after all salts are fully dissolved (Ca,Mg,K,Sr). This is to prevent precipitation of chalk.
B29: free edit area >>>>>

Sheet Log
C1: DATA LOG (information copied from the DSR Calculator) | L1: =+Calculator!F4 -> New tank | S1: Never delete all data above Row 5, or the graphics will not work anymore! Just wait till you have your own first 5 datarows, than you can delete the "dummy" ones.
A2: Date | B2: Action | C2: liters | D2: Time | E2: PH | F2: Sal | G2: KH | H2: Ca | I2: Mg | J2: SO4 | K2: K | L2: Sr | M2: B | N2: I | O2: Mn (ppb) | P2: PO4 | Q2: 2xNO3 | R2: Fe | S2: Short Comment on the tank
A4: 2018-11-17 | B4: CarbonDos. | C4: 700 | D4: 17:24:32 | Q4: ... ml | S4: CarbonVS or EZ Carbon in milliliters ,Daily Dosing
A5: 2018-11-17 | B5: FeDosing | C5: 700 | D5: 17:24:32 | P5: ... ml | S5: Fe or FeTrace Dosing in milliliters, Daily Dosing
A6: 2018-11-17 | B6: Ca Dosing | C6: 700 | D6: 17:24:30 | H6: 2.978165909 | S6: CaSr in milliliters - New Daily Dosing (by DSR2.0). Mix 1L = 700gr Ca+ / 120gr Sr+
A7: 2018-11-17 | B7: KH Dosing | C7: 700 | D7: 17:24:29 | G7: 5.297727273 | S7: PH+/EZBuffer in milliliters - New Daily Dosing (by DSR2.0). if KH+(90gr/L) is used than ml x2
A9: 2018-11-12 | B9: Ca Dosing | C9: 700 | D9: 19:34:58 | H9: 2.978165909 | S9: CaSr in milliliters - New Daily Dosing (by DSR2.0). Mix 1L = 700gr Ca+ / 120gr Sr+
A10: 2018-11-12 | B10: KH Dosing | C10: 700 | D10: 19:34:55 | G10: 5.297727273 | S10: PH+/EZBuffer in milliliters - New Daily Dosing (by DSR2.0). if KH+(90gr/L) is used than ml x2
A11: 2018-11-12 | B11: CarbonDos. | C11: 700 | D11: 19:34:53 | Q11: 3.5 | S11: CarbonVS or EZ Carbon in milliliters ,Daily Dosing
A12: 2018-11-12 | B12: FeDosing | C12: 700 | D12: 19:34:51 | P12: 0.7 | S12: Fe or FeTrace Dosing in milliliters, Daily Dosing
A13: 2018-11-12 | B13: Corrections | C13: 700 | D13: 19:32:44 | F13: -140 | G13: 29.4 | H13: 64.19 | I13: No Data | J13: No Data | K13: No Data | L13: No Data | M13: No Data | N13: No Data | O13: No Data | P13: 0 | Q13: ----- | R13: 0.6965 | S13: Comments:
A14: 2018-11-12 | B14: Measurement | C14: 700 | D14: 10:40:00 | E14: 7.8 | F14: 33.2 | G14: 7.6 | H14: 415 | I14: x | J14: x | K14: x | L14: x | M14: x | N14: x | O14: x | P14: 0.08 | Q14: 6 | R14: 0 | S14: first measurement after start of tank
A15: 2018-11-12 | B15: Setpoint | C15: 700 | D15: 19:32:28 | E15: 8.3 | F15: 33 | G15: 9 | H15: 440 | I15: 1350 | J15: 904 | K15: 390 | L15: 8 | M15: 4 | N15: 0.06 | O15: 0.4 | P15: 0.08 | Q15: 2.5 | R15: 0,02 | S15: Adjust if neccesary
A16: 2018-11-12 | B16: Saltmix / Start | C16: 700 | D16: 19:31:45 | E16: --------- | F16: 17995.296 | G16: 189 | H16: 1129.744 | I16: 3890.240091 | J16: 4865.059563 | K16: 1820.91 | L16: 170.24 | M16: 355.04 | N16: 10.92 | O16: 0 | P16: 0 | Q16: 0 | R16: 0.6965 | S16: RO water required: 688,38 Liters, Only use the elements required (for correction)

Sheet DSR2.0
D1: DSR Verbruiks Calculator v.190304 ( DSR 2.0 ) | O1: =+Calculator!F4 -> New tank
B2: Date | C2: Action | D2: liters | E2: Time | F2: PH | G2: Sal | H2: KH | I2: Ca | J2: Mg | K2: SO4 | L2: K | M2: Sr | N2: B | O2: I | P2: Mn (ppb) | Q2: PO4 | R2: NO3 | S2: Fe
B3: 2018-11-03 | C3: Measurement | D3: 100 | E3: 10:40:00 | F3: 7.94 | G3: 0 | H3: 0 | I3: 0 | J3: 0 | K3: x | L3: 0 | M3: 0 | N3: 0 | O3: 0 | P3: 0 | Q3: 0 | R3: 0 | S3: 0 | T3: < laatste
B4: 2018-11-01 | C4: Setpoint | D4: 100 | E4: 17:22:54 | F4: 8.3 | G4: 33 | H4: 9 | I4: 440 | J4: 1350 | K4: 904 | L4: 390 | M4: 8 | N4: 4 | O4: 0.06 | P4: 0.4 | Q4: 0.08 | R4: 2.5 | S4: 0,02 | T4: < Target | V4: start !
C5: Extra p/dag | D5: Eenheid | E5: Vast (gram) | F5: Vloeib. (ml) | G5: Product | J5: Dag. start | K5: dosering (ml) | L5: Nieuw (ml) | M5: Advies meet intervallen, (bij stabiel waarden). Na de start doseringen met de metingen bijsturen. | U5: T.verbr. p/d | V5: dosering (ml) | Y5: Converter ml > gr
B6: Saliniteit | C6: =($G$4-$G$3)/($B$3-$B$4) -> 16.5 | D6: ppt | E6: =($C$31/100)*(C6)*100 -> 1650 | G6: DSR NaCl+, pure Salt | L6: =K6+F6 -> 0 | M6: 1x per 4 weken | Y6: vloeistof (ml) | Z6: Vloeistof (gram)
B7: KH & PH | C7: =($H$4-$H$3)/($B$3-$B$4) -> 4.5 | D7: dKH | F7: =IF(F3<8.4,($C$31/100)*($C$7)*16.65,"") -> 74.925 | G7: DSR PH+, KH+PH verhoger | J7: 0,3dKH | K7: 0 | L7: =IF(F3 <8.4,K7+F7,"") -> 74.925 | M7: PH 24/7 controleren d.m.v. PH meter. 12x/dag doseren | U7: =$L$7/(($C$31/100)*16.65) -> 4.5 | V7: =IF(Q3<8.11,($C$31/100)*16.65*0.4,"") -> 6.66 | AA7: EZ Ratio
B8: KH | C8: =($H$4-$H$3)/($B$3-$B$4) -> 4.5 | D8: dKH | E8: =($C$31/100)*(C8)*3 -> 13.5 | F8: =IF(F3>=8,($C$31/100)*($C$8)*3*11.1,"") ->  | G8: DSR KH+, Bicarbonaat | J8: 0,3dKH | K8: 0 | L8: =IF(F3>=8,K8+F8,"") ->  | M8: 1x per week - 1x per 2 weken (indien stabiel) | U8: =$L$8/(($C$31/100)*3*11.1) ->  | V8: =IF(Q3>=7.81,($C$31/100)*3*11.1*0.4,"") ->  | X8: PH | Y8: 10860 | Z8: =$Y$8*1.091 -> 11848.26 | AA8: =L7/L9 -> 0.649744355
B9: Ca | C9: =($I$4-$I$3)/($B$3-$B$4) -> 220 | D9: PPM | E9: =($C$31/100)*(C9)*0.3668 -> 80.696 | F9: =($C$31/100)*($C$9)*0.3668*1.429 -> 115.314584 | G9: DSR Ca+, Calcium | J9: 1,45ppm | K9: 0 | L9: =(K9+F9) -> 115.314584 | M9: 1x per week - 1x per 2 weken (indien stabiel) | U9: =$L$9/(($C$31/100)*0.3668*1.429) -> 220 | V9: =($C$31/100)*0.3668*1.429*1.45 -> 0.76002794 | X9: KH | Y9: 10
B10: Mg | C10: =($J$4-$J$3)/($B$3-$B$4) -> 675 | D10: PPM | E10: =($C$31/100)*(C10)*0.836 -> 564.3 | F10: =($C$31/100)*($C$10)*0.836*1.33 -> 750.519 | G10: DSR Mg+, Magnesium | J10: 0,35ppm | K10: 0 | L10: =K10+F10 -> 750.519 | M10: 1x per 4 weken | U10: =$L$10/(($C$31/100)*0.836*1.33) -> 675 | V10: =($C$31/100)*0.836*1.33*0.35 -> 0.389158 | X10: CarbonVS | Y10: 10
B11: SO4 | C11: =($K$4-$K$3)/($B$3-$B$4) ->  | D11: PPM | E11: - | F11: - | G11: DSR MgSO4, Mg+ Sulfaat | K11: 0 | L11: - | M11: 1x per kwartaal (labtest). gebruik de sulfaat calculator | V11: 0 | X11: Mg | Y11: 10
B12: Kalium | C12: =($L$4-$L$3)/($B$3-$B$4) -> 195 | D12: PPM | E12: =($C$31/100)*(C12)*0.190476 -> 37.14282 | G12: DSR K+, Kalium | J12: n.t.b. | K12: 0 | L12: 0 | M12: 1x per 4 weken, 1x per 8 weken (indien stabiel) | V12: 0 | Y12: -
B13: Strontium | C13: =($M$4-$M$3)/($B$3-$B$4) -> 4 | D13: PPM | F13: =($C$31/100)*($C$13)*3.04 -> 12.16 | G13: DSR Sr+, Strontium | J13: CaSr Mix | K13: - | L13: - | M13: doseren op Ca/Sr ratio 50:1, 1x per 6 weken | V13: - | Y13: -
B14: Boor | C14: =($N$4-$N$3)/($B$3-$B$4) -> 2 | D14: PPM | F14: =($C$31/100)*($C$14)*12.68 -> 25.36 | G14: DSR B+, Boor | J14: n.t.b. | K14: =($C$31/100)*(0)*12.68 -> 0 | L14: 25.36 | M14: op peil brengen en daarna 1x per kwartaal meten | V14: =($C$31/100)*(0)*12.68 -> 0 | X14: Sr | Y14: 170.24 | Z14: =$Y$14*1.0525 -> 179.1776
B15: Jodide | C15: =($O$4-$O$3)/($B$3-$B$4) -> 0.03 | D15: PPM | F15: =($C$31/100)*($C$15)*100*0.26 -> 0.78 | G15: DSR I+, Jodide | J15: 0,006ppm | K15: =($C$31/100)*(0.006)*100*0.26 -> 0.156 | L15: 0.936 | M15: per 4 weken meten en corrigeren | V15: =($C$31/100)*(0.006)*100*0.26 -> 0.156 | X15: B | Y15: 355.04 | Z15: =$Y$15*1.0175 -> 361.2532
B16: Mangaan | C16: =($P$4-$P$3)/($B$3-$B$4) -> 0.2 | D16: ppb | F16: =($C$31/100)*($C$16)*10*0.1 -> 0.2 | G16: DSR Mn+, Mangaan | J16: 0,4ppb | K16: =($C$31/100)*(0.4)*10*0.1 -> 0.4 | L16: 0.6 | M16: 1x per kwartaal (labtest) | V16: =($C$31/100)*(0.4)*10*0.1 -> 0.4 | X16: I2 | Y16: 10 | Z16: =$Y$16*1.001 -> 10.01
B17: Fosfaat | C17: =($Q$4-$Q$3)/($B$3-$B$4) -> 0.04 | D17: PPM | F17: =($C$31/100)*($C$17)*100*0.1 -> 0.4 | G17: DSR PO4+, Fosfaat | J17: n.t.b. | K17: =($C$31/100)*(0)*100*0.1 -> 0 | L17: 0.4 | M17: 1x per week - 1x per 2 weken (indien stabiel) | V17: =($C$31/100)*(0)*100*0.1 -> 0 | X17: Mn | Y17: 10 | Z17: =$Y$17*1.001 -> 10.01
B18: Nitraat | C18: =($R$4-$R$3)/($B$3-$B$4) -> 1.25 | D18: PPM | F18: =($C$31/100)*($C$18)*0.8 -> 1 | G18: DSR 2xNO3+(rev.2019), Nitraat | J18: n.t.b. | K18: =($C$31/100)*(0)*1.44 -> 0 | L18: 1 | M18: 1x 2-3 weken (indien stabiel) | V18: =($C$31/100)*(0)*1.44 -> 0 | X18: PO4 | Y18: 10 | Z18: =$Y$18*1.001 -> 10.01
G19: DSR CabonVS | J19: n.t.b. | K19: =($C$31/100)*(0)*1.44 -> 0 | L19: 0 | M19: 1x 2-3 weken (indien stabiel) | V19: =($C$31/100)*(0)*1.44 -> 0 | X19: NO3 | Y19: 10 | Z19: =$Y$19*1.03528 -> 10.3528
B20: Fe | C20: =($S$4-$S$3)/($B$3-$B$4) -> 0.01 | D20: PPM | F20: =($C$31/100)*($C$20)*10*0.4975 -> 0.04975 | G20: DSR Fe+ / DSR FeTrace | J20: 0,02ppm | K20: =($C$31/100)*(0.02)*10*0.4975 -> 0.0995 | L20: 0.14925 | M20: 1x per 4-8 weken een controle meting tegen overdoseren | V20: =($C$31/100)*(0.02)*10*0.4975 -> 0.0995 | X20: CarbonVS | Y20: 482 | Z20: =$Y$20*1.03528 -> 499.00496
X21: Fe+ | Y21: 10
B22: DSR Calcium/Strontium mix (50:1ppm) | H22: DSR KH+ oplossing (90gr/L) | X22: Fe-Trace | Y22: 10 | Z22: =$Y$22*1.183 -> 11.83
B23: Fles (L) | C23: Ca+ (gr) | D23: Sr+ (ml) | E23: RO water (ml) | H23: Fles (L) | I23: KH+ (gr) | J23: RO water (ml) | X23: CaSr+ | Y23: 10 | Z23: =$Y$23*1.395 -> 13.95
B24: 1 | C24: =B24*700 -> 700 | D24: =C24*(3/18.34) -> 114.5038168 | E24: =B24*(1000-419) -> 581 | H24: 20 | I24: =H24*90 -> 1800 | J24: aanvullen tot gewenste volume | X24: Fluor+ | Y24: 1 | Z24: =$Y$24*1.025 -> 1.025
B25: =$C$31/300 -> 0.3333333333 | C25: advies bij 30 dgn gemiddeld verbruik | H25: =$C$31/37.5 -> 2.666666667 | I25: KH+ advies bij 30 dgn gemiddeld verbruik
B26: DSR Sr+ gewicht = | D26: =D24*1.05 -> 120.2290076 | E26: gram | H26: =H25/2 -> 1.333333333 | I26: PH+ container = 50% (elk 2 uur doseren)
B28: vorig | C28: =+$B$4 -> 2018-11-01 | D28: cell B4
B29: laatste | C29: =+$B$3 -> 2018-11-03 | D29: cell B3
B30: dagen | C30: =$B$3-$B$4 -> 2 | D30: inden stuurwaarden (voor correctie) gewenst, het aantal dagen tussen start en eindwaarde "1" maken door de datums aan te passen
B31: Volume (L) | C31: =+$D$3 -> 100 | D31: cell D3 | E31: (laatse meting)
B32: Copieer de te vergelijken waarden vanuit de log naar regel 3 en 4, of vul de waarden hierboven zelf in. Regel 4 = Target (of setpoint) & regel 3 = laatste meting. Bij geen meting "x" invullen. Indien bij de vorige meting de mineralen zijn aangevuld, dient dit met "Setpoint" aangeduid te worden.
B33: De verbruiks calculator berekent het dagelijks verbruik (tekort) van stoffen in het aquarium, door 2 meting te verrichten gedurende een zelf ter bepalen periode. Het meest logische is om een termijn van 1 week aan te houden voor de meeste stoffen. In het gele geaccentueerd gedeelte zijn de start- en eind waarden in te vullen. Op rij 4 komt de zogenaamde "setpoint" en op rij 3 van de laatste meting. De setpoint is de waarde na de uitgevoerde correcties. Bij het copieren vanuit de log uitsluitend de kolomen tussen datum t/m Fe copieren en plakken !
B37: in het resultaat veld staan: De verbruiken per dag omgerekend in ppt/PPM/ppb, een kolom in grammen per dag, een kolom in vloeistoffen per dag, de te gebruiken producten, de advies testintervallen en doseerwijze. Nog te bepalen (n.t.b.) betekend dat het verbruik per aquarium kan verschillen en er dus naar behoefte moet worden gedoseerd.
B39: Bij een gemeten PH < 8,11 word het advies verstrekt om het PH+ product van DSR te gebruiken (i.p.v KH+). Dit product stuurt de PH omhoog en is 2x geconcentreerd als de KH+. Ideaal om de KH container klein te houden. Bij een PH tussen 7,80-8,1 kan er gekozen worden tussen KH+ of PH+. Bij een PH boven de 8,11 wordt het gebruik van KH+ geadviseerd.
B41: Bij het eerste in gebruiksname van de DSR2.0 calculator staat er een berekende baseline dosering (K10), die overeenkomt met de basline dosering. Hier dient het laatst bekend verbruik ingevuld te werden. Baseline doseringen zijn dosering om gelijk mee te starten, op basis van minimaal beschikbaarheid. Natuurlijk is het bij een overschot vanzelfsprekend dat de baseline dosering voor die betreffende stof weggelaten word.

Sheet Volume Calc
E1: English | F1: Nederlands
A3: US Galons > Liters Converter | B3: US Galons | C3: Liters | F3: =IF($H$3="Nederlands","Gekozen Taal","Choosen Language") -> Choosen Language | H3: English
B4: 1 | C4: =B4*3.78541178 -> 3.78541178
A6: *** Water volume Calculator *** | B6: =IF($H$3="Nederlands","Total Berekende Liters","Total Calculated Liters") -> Total Calculated Liters | C6: Result (dm3) = (L) | D6: =IF($H$3="Nederlands","Lengte (cm)","Length (cm)") -> Length (cm) | E6: =IF($H$3="Nederlands","Breedte (cm)","Width (cm)") -> Width (cm) | F6: =IF($H$3="Nederlands"," Water Hoogte (cm)","Water Heigth (cm)") -> Water Heigth (cm) | H6: vers.160314
A7: =IF($H$3="Nederlands","Totaal berekend water volume >>>","Total Calculated water Volume >>>") -> Total Calculated water Volume >>> | B7: =SUM(C7:C19) -> 688.584 | C7: =(D7*E7*F7)/1000 -> 688.6464 | D7: 248 | E7: 78 | F7: 35.6 | H7: =IF($H$3="Nederlands","Showbak","Show Tank") -> Show Tank
A8: .................................................................... | C8: 11.544 | D8: 39 | E8: 37 | F8: 8 | H8: Sump
C9: 0 | D9: 0 | E9: 76 | F9: 42 | H9: Refugium
C10: 0 | D10: 0 | E10: 40 | F10: 29 | H10: Qt1
C11: 0 | D11: 0 | E11: 28 | F11: 61 | H11: Qt2
C12: 0 | D12: 0 | E12: 28 | F12: 61 | H12: Qt3
C13: 0 | D13: 248 | E13: 78 | F13: 0 | H13: Hoogteverval = sump capaciteit (2cm)
C14: -11.6064 | D14: 248 | E14: 78 | F14: -0.6 | H14: 30kg sand
A15: =IF($H$3="Nederlands","De water volume calculator is een hulpmiddel voor het berekenen van de totale water volume. Deze waarde worden NIET overgenomen naar de DSR Calculator ! ","The water volume calculator is a tool to calculate the total water volume. This value is NOT transfered to the DSR Calculator!") -> The water volume calculator is a tool to calculate the total water volume. This value is NOT transfered to the DSR Calculator! | C15: =-(((D15*E15*F7)/1000)-((D15*E15*F15)/1000)) -> 0 | D15: 0 | E15: 32 | F15: 30 | H15: =IF($H$3="Nederlands","overloop kamer (buitenmaat)","Skimmer compartment") -> Skimmer compartment
C16: =-(D16*E16*F16)/1000 -> 0 | D16: 0 | E16: 0 | F16: =+F7 -> 35.6 | H16: =IF($H$3="Nederlands","Droog kamer (buitenmaat)","Cable compartment") -> Cable compartment
C17: =-(D18*E18) -> 0 | D17: =IF($H$3="Nederlands","Gewicht (Kg)","Weight (Kg)") -> Weight (Kg) | E17: factor | F17: =IF($H$3="Nederlands","Opbouwen (opgeven gewicht en omreken factor)","Rock formations ( provide weight and factor )") -> Rock formations ( provide weight and factor )
D18: 0 | E18: 0.75
C19: 0 | D19: <<<<< | E19: =IF($H$3="Nederlands","zelf op te geven volume aftrek","Provide own volume to substract from total ") -> Provide own volume to substract from total
C21: kilo > liter omreken factor voor verschillende materialen
C22: =-(D22*E22) -> -8.365116279 | D22: 10 | E22: =35.97/43 -> 0.8365116279 | F22: factor voor koraal zand 0,5-1mm (droog gewicht)
C23: -5.703703704 | D23: 10 | E23: =15.4/27 -> 0.5703703704 | F23: factor voor koraal zand 0,5-1mm (nat gewicht)
A24: =IF($H$3="Nederlands","Alleen de GELE velden zijn te bewerken. Het werkblad is beveiligd om overschrijven van formules te voorkomen","Only the YELLOW fields are editable. The calculation sheet is protected to prevent overwriting of formula's") -> Only the YELLOW fields are editable. The calculation sheet is protected to prevent overwriting of formula's | C24: -7.157894737 | D24: 10 | E24: =27.2/38 -> 0.7157894737 | F24: factor voor dymico filtermassa (dolemiet)
C25: -4.765957447 | D25: 10 | E25: =11.2/23.5 -> 0.4765957447 | F25: factor voor poreus levend steen (luchtig)
C26: -4.541666667 | D26: 10 | E26: =10.9/24 -> 0.4541666667 | F26: factor voor massief levend steen (zwaar)
C27: -3.78440367 | D27: 10 | E27: =8.25/21.8 -> 0.378440367 | F27: factor voor massief cement/beton
C28: =SUM(C22:C27) -> -34.3187425 | D28: totaal
A31: free edit area >>>>>

Sheet PPM>ml
B1: *** Dutch Synthetic Reefing *** ( de DSR Methode ) *** | C1: Result (Res) (dm3) = (L) | D1: Lengte (cm) | E1: Breedte (cm) | F1: W-Hoogte (cm) | G1: Vers.130721
B2: DSR Mineralen Calculator by GlennF | C2: =(D2*E2*F2)/1000 -> 1180 | D2: 250 | E2: 80 | F2: 59 | G2: Bak (binnemaat)
C3: =(D3*E3*F3)/1000 -> 67.2 | D3: 80 | E3: 70 | F3: 12 | G3: Sump (binnenmaat)
C4: =(D4*E4*F4)/1000 -> 0 | D4: 0 | E4: 70 | F4: 45 | G4: Refugium
B6: PPM > Grams/Milliliters Convertor v.190304
B7: Dosing Liquid ? | D7: Y
B8: Tank volume (Liters) | D8: =+Calculator!$C$6 -> 100
B9: DSR Products | C9: Start | D9: ppm | E9: dosing | F9: 100% aanmaak | G9: Units | H9: Opm./Check
B10: Salinity/ NaCl: (ppt) | C10: 0 | D10: 33 | E10: =($D$8/100)*(D10-C10)*100 -> 3300 | F10: =$E10*0.87 -> 2871 | G10: gram | H10: 1ppt = 100gr/100L | K10: Y
B11: PH+ (liquid only) | C11: 0 | D11: 1 | E11: =($D$8/100)*(D11-C11)*3*11.1/2 -> 16.65 | F11: =+E11 -> 16.65 | G11: ml
B12: KH+ | C12: 0 | D12: 9 | E12: =IF($D$7="Y",($D$8/100)*(D12-C12)*3*11.1,($D$8/100)*(D12-C12)*3) -> 299.7 | F12: =+E12 -> 299.7 | G12: =IF($D$7="Y", "ml","gram") -> ml | H12: 1KH = 3gr/100L | K12: N
B13: Ca+ | C13: 0 | D13: 440 | E13: =IF($D$7="Y", ($D$8/100)*(D13-C13)*0.3668*1.429,($D$8/100)*(D13-C13)*0.3668) -> 230.629168 | F13: =+E13 -> 230.629168 | G13: =IF($D$7="Y", "ml","gram") -> ml | H13: 1mg/l = 0,3668gr/100L
B14: Mg+ | C14: 0 | D14: x | E14: =IF($D$7="Y", ($D$8/100)*(D14-C14)*0.836*1.33,($D$8/100)*(D14-C14)*0.836) ->  | F14: =($E$14/7)*6 ->  | G14: =IF($D$7="Y", "ml","gram") -> ml | H14: 1mg/l = 0,836gr/100L
B15: Mg (by MgSO4+) | D15: x | E15: =IF($D$7="Y", ($D$8/100)*(D15-C15)*0.836*1.33,($D$8/100)*(D15-C15)*1.01389) ->  | F15: =($E$14/7)*6 ->  | G15: =IF($D$7="Y", "ml","gram") -> ml
B16: K+ | C16: 0 | D16: 390 | E16: =IF($D$7="Y",($D$8/100)*(D16-C16)*0.667,($D$8/100)*(D16-C16)*0.190476) -> 260.13 | F16: =$E16*0.81 -> 210.7053 | G16: =IF($D$7="Y", "ml","gram") -> ml | H16: 1mg/l =0,190476gr/100L
B17: Sr+ | C17: 0 | D17: 8 | E17: =($D$8/100)*(D17-C17)*3 -> 24 | F17: =+E17 -> 24 | G17: ml | H17: 1mg/l = 3,04ml/100L
B18: B+ | C18: 0 | D18: 4 | E18: =($D$8/100)*(D18-C18)*12.68 -> 50.72 | F18: =+E18 -> 50.72 | G18: ml | H18: 1mg/l = 12,68ml/100L
B19: I2+ | C19: 0 | D19: 0.06 | E19: =($D$8/100)*(D19-C19)*100*0.26 -> 1.56 | F19: =+E19 -> 1.56 | G19: ml | H19: 0,01mg/l = 0,26ml/100L
B20: Mn+ (ppb) | C20: 0 | D20: 0.4 | E20: =($D$8/100)*(D20-C20)*10*0.1 -> 0.4 | G20: ml
B21: PO4+ | C21: 0 | D21: 0.02 | E21: =($D$8/100)*(D21-C21)*100*0.1 -> 0.2 | F21: =+E21 -> 0.2 | G21: ml | H21: 0,01mg/l = 0,1ml/100L
B22: 2xNO3+ (rev.2019) | C22: 0 | D22: 1 | E22: =($D$8/100)*(D22-C22)*(0.8) -> 0.8 | F22: =+E22 -> 0.8 | G22: ml | H22: 1mg/l = 1,44ml/100L
B23: Fe Trace / Fe+ | C23: 0 | D23: 0.15 | E23: =($D$8/100)*(D23-C23)*10*0.4975 -> 0.74625 | F23: =+E23 -> 0.74625 | G23: ml | H23: 0,1mg/l = 0,4975ml/100L
B24: CarbonVS (average daily dose) | E24: =(D8/100)*0.5 -> 0.5 | F24: =+E24 -> 0.5 | G24: ml
B25: Amino/C (weekly dose) | E25: =(D8/100)*1 -> 1 | F25: =+E25 -> 1 | G25: ml
B26: mobilescreen: tap on yellow fields until keyboard appear

Sheet S-calc
A1: Sulfaat calculator v.210715
B2: auto calculator | E2: auto calculator: hiermee wordt berekend wat, je van MgCl2 en MgSO4 nodig heb om de target Mg en S waarden te bereiken
B3: Volume (L) | D3: 100
B4: target Mg | D4: 1350
B5: target S | D5: 904
A6: manual adjustment
A7: stof | B7: grams | C7: Mg Ions | D7: grams
A8: Mg+ | B8: 555.7 | C8: =($B$8/$D$3)*1000*(24.31/203.306) -> 664.4696664 | D8: =(($D$3/1000)*($D$4-($D$9/$D$3)*1000*(24.31/246.482))*(203.306/24.31)) -> 555.7485844
A9: MgSO4 | B9: 695 | C9: =($B$9/$D$3)*1000*(24.31/246.482) -> 685.4638473 | D9: =($D$3/1000)*($D$5)*(246.482/32.06) -> 695.008509
A10: MgTotal | C10: =SUM(C8:C9) -> 1349.933514
A11: S total | C11: =($B$9/$D$3)*1000*(32.06/246.482) -> 903.9889323
A12: manual adjustment: na invullen van het aantal liters kan je experimenteren en zien wat het effect is van diverse mix verhoudingen op het Mg en S gehalte.
A13: Het bepalen van S toevoegen d.m.v. MgSO4 kan, door het tekort (bij target) en het aantal liters (watervolume) in te vullen. Daarmee wordt aangeven hoeveel MgSO4 aangevuld dient te worden om S op peil te brengen. Het MgSO4 weegt men af en legt dit apart. Dit dient geleidelijk gebruikt te worden i.p.v. Mg+ (MgCl2) om je Mg op peil te houden, totdat het aangegeven hoeveelheid MgSO4 verbruikt is. Omdat de DSR calculator Mg+ berekend, dient het aangeven gewicht met 1,21 vermenigvuldigen te worden bij het toepassen van MgSO4.

Sheet Fe dosing
A2: Fe+ daily dosing table, to be used as PO4 remover
A3: maximum Single dosing | B3: 1 | C3: =+Calculator!$F$22 -> 0.0995 | D3: ml | E3: <<< data taken from fe dosing field in DSR Calculator
F4: name: | G4: =+Calculator!F4 -> New tank
A5: day1 | B5: 0.2 | C5: =$C$3*B5 -> 0.0199 | D5: ml | F5: total netto volume in liters | H5: =Calculator!C6 -> 100
A6: day2 | B6: 0.4 | C6: =$C$3*B6 -> 0.0398 | D6: ml
A7: day3 | B7: 0.6 | C7: =$C$3*B7 -> 0.0597 | D7: ml
A8: day4 | B8: 0.8 | C8: =$C$3*B8 -> 0.0796 | D8: ml
A9: day5 | B9: 1 | C9: =$C$3*B9 -> 0.0995 | D9: ml
A11: =IF(Calculator!$I$2="Nederlands","in 't geval van een extreem hoog fosfaat kan de maximale dosering van 2x per dag Fe+ worden toegedient","** in case of extreme high PO4, the daily dose of Fe+ may be given every 12 hours ") -> ** in case of extreme high PO4, the daily dose of Fe+ may be given every 12 hours
A12: =IF(Calculator!$I$2="Nederlands","** DSR Fe+ word als een effectief PO4 verwijderaar gebruikt. Over doseren kan gevaarlijk zijn voor de vissen. Dosering geleidelijk opbouwen","** DSR Fe+ is being used as a very efficient PO4 remover. Overdosing can be dangerous for the fishes. Gradualy build up the dosing") -> ** DSR Fe+ is being used as a very efficient PO4 remover. Overdosing can be dangerous for the fishes. Gradualy build up the dosing
A13: =IF(Calculator!$I$2="Nederlands","Fe+ (de PO4 verwjderaar) mag worden ingezet bij een PO4 bereik vanaf > 0,04ppm.","Fe+ (the PO4 remover) can be applied from PO4 range > 0,04ppm") -> Fe+ (the PO4 remover) can be applied from PO4 range > 0,04ppm
A14: =IF(Calculator!$I$2="Nederlands","Fe trace mag worden ingezet bij een PO4 bereik van 0,01ppm-0,08ppm.","Fe Trace can be applied in de PO4 range 0,01ppm-0,08ppm") -> Fe Trace can be applied in de PO4 range 0,01ppm-0,08ppm
A15: =IF(Calculator!$I$2="Nederlands","Er is dus een overgangs gebied waarbij je zelf mag kiezen welke ijzer beter voor jou werkt.","There is an overlapping range where you can choose which iron suits your needs best") -> There is an overlapping range where you can choose which iron suits your needs best
A16: =IF(Calculator!$I$2="Nederlands","Hoeveel ppm ijzer er gedoseerd word is een eigen keuze. De richtlijn is dat bij hoog PO4 je naar de maximale dosering Fe+ gaat","How much ppm iron is being dosed is up to you. The guideline is, if you have high PO4 you should apply the maximum dosing Fe+") -> How much ppm iron is being dosed is up to you. The guideline is, if you have high PO4 you should apply the maximum dosing Fe+

Sheet CarbonVS3
B2: CarbonVS dosing sheduler 3.0
B3: Quick or Normal Dosing? | E3: Normal | G3: Quick
B4: volume (L) | C4: =+Calculator!$C$6 -> 100 | E4: v.210504 | G4: Normal
C5: Startdate | D5: step | E5: dosing (ml) | G5: percentage
B6: =IF($E$3="Quick", "Day-1","Day 1-3") -> Day 1-3 | C6: 2016-11-20 | D6: S1 | E6: =($C$4/100)*0.5*G6 -> 0.5 | G6: 1 | I6: D1 | J6: 1
B7: =IF($E$3="Quick", "Day-2","Day 4-6") -> Day 4-6 | C7: =IF($E$3="Quick", C6+1,C6+3) -> 2016-11-23 | D7: S2 | E7: 0.6 | G7: =G6+20% -> 1.2 | I7: D2 | J7: =J6+3 -> 4
B8: =IF($E$3="Quick", "Day-3","Day -7-9") -> Day -7-9 | C8: =IF($E$3="Quick", C7+1,C7+3) -> 2016-11-26 | D8: S3 | E8: 0.7 | G8: =G7+20% -> 1.4 | I8: D3 | J8: =J7+3 -> 7
B9: =IF($E$3="Quick", "Day-4","Day 10-12") -> Day 10-12 | C9: 2016-11-29 | D9: S4 | E9: 0.84 | G9: =G8*1.2 -> 1.68 | I9: D4 | J9: 10
B10: =IF($E$3="Quick", "Day-5","Day 13-15") -> Day 13-15 | C10: 2016-12-02 | D10: S5 | E10: 1.008 | G10: 2.016 | I10: D5 | J10: 13
B11: =IF($E$3="Quick", "Day-6","Day 16-18") -> Day 16-18 | C11: 2016-12-05 | D11: S6 | E11: 1.2096 | G11: 2.4192 | I11: D6 | J11: 16
B12: =IF($E$3="Quick", "Day-7","Day 19-21") -> Day 19-21 | C12: 2016-12-08 | D12: S7 | E12: 1.45152 | G12: 2.90304 | I12: D7 | J12: 19
B13: =IF($E$3="Quick", "Day-8","Day 22-24") -> Day 22-24 | C13: 2016-12-11 | D13: S8 | E13: 1.741824 | G13: 3.483648 | I13: D8 | J13: 22
B14: =IF($E$3="Quick", "Day-9","Day 25-27") -> Day 25-27 | C14: 2016-12-14 | D14: S9 | E14: 2.0901888 | G14: 4.1803776 | I14: D9 | J14: 25
B15: =IF($E$3="Quick", "Day-10","Day 28-30") -> Day 28-30 | C15: 2016-12-17 | D15: S10 | E15: 2.50822656 | G15: 5.01645312 | I15: D10 | J15: 28
B16: =IF($E$3="Quick", "Day-11","Day 31-33") -> Day 31-33 | C16: 2016-12-20 | D16: S11 | E16: 3.009871872 | G16: 6.019743744 | I16: D11 | J16: 31
B17: =IF($E$3="Quick", "Day-12","Day 34-36") -> Day 34-36 | C17: 2016-12-23 | D17: S12 | E17: 3.611846246 | G17: 7.223692493 | I17: D12 | J17: 34
B18: =IF($E$3="Quick", "Day-13","Day 37-39") -> Day 37-39 | C18: 2016-12-26 | D18: S13 | E18: 4.334215496 | G18: 8.668430991 | I18: D13 | J18: 37
B19: =IF($E$3="Quick", "Day-14","Day 40-42") -> Day 40-42 | C19: 2016-12-29 | D19: S14 | E19: 5.201058595 | G19: 10.40211719 | I19: D14 | J19: 40
B20: =IF($E$3="Quick", "Day-15","Day 43=max") -> Day 43=max | C20: 2017-01-01 | D20: S15 | E20: 6.241270314 | G20: 12.48254063 | I20: D15 | J20: 43
B21: Only use quickdosing after the sandbed was cleaned and powerfilter applied., otherwise select "Normal"

Sheet CSR v5
C1: Nederlands | D1: English
B2: =IF($D$2="Nederlands","Gekozen Taal","Choosen Language") -> Gekozen Taal | D2: Nederlands
A4: =IF($D$2="Nederlands","*** Dutch Synthetic Reefing *** ","*** Dutch Synthetic Reefing ***") -> *** Dutch Synthetic Reefing *** | C4: vers.170405(v5)
A5: =IF($D$2="Nederlands","CRS - Custom Reef Salt calculator","CRS - Custom Reef Salt calculator") -> CRS - Custom Reef Salt calculator | C5: =IF($D$2="Nederlands","Laatste aanpassing","Last saved date") -> Laatste aanpassing
A6: =IF($D$2="Nederlands"," Water volume","Water volume") -> Water volume | B6: =+Calculator!$C$6 -> 100 | C6: 2017-04-05
A7: Parameter / range | B7: \ | C7: =IF($D$2="Nederlands","Nieuwe aanmaak","New water") -> Nieuwe aanmaak | D7: =IF($D$2="Nederlands","eenheid / Grondstof","Units / Product") -> eenheid / Grondstof | F7: =IF($D$2="Nederlands","Osmose water meten voor aanmaak","Measure RO water before applying") -> Osmose water meten voor aanmaak | H7: gemeten | J7: correctie ratio
A8: =IF($D$2="Nederlands","Osmose water","RO water") -> Osmose water | C8: =($B$6)*(1-0.0166) -> 98.34 | D8: Liters | F8: TDS RO = | G8: 0 | K8: foutmarge KH+ door werkelijke metingen
A9: =IF($D$2="Nederlands","Saliniteit: (33-34ppt) (+1,5)*","Salinity: (33-34ppt)") -> Saliniteit: (33-34ppt) (+1,5)* | B9: 33 | C9: =($B$6/100)*($B9+1.5)*100*(27.2656/35) -> 2687.609143 | D9: =IF($D$2="Nederlands","g / NaCl+","g / NaCl+") -> g / NaCl+ | F9: KH RO = | G9: 0 | K9: kh 4,1 | L9: KH 9,6 | M9: kh 10,2
A10: =IF($D$2="Nederlands","KH: (7-9dKH) (x0,97)*","KH: ( 7-9dKH)*") -> KH: (7-9dKH) (x0,97)* | B10: 5 | C10: =($B$6/100)*($B10-0)*3*0.97 -> 14.55 | D10: =IF($D$2="Nederlands","g / KH+","g / KH+") -> g / KH+ | J10: 0.8
A11: =IF($D$2="Nederlands","Calcium: ( 420-460ppm) (x0.96)*","Calcium: (420-460ppm)* ") -> Calcium: ( 420-460ppm) (x0.96)* | B11: 400 | C11: =($B$6/100)*($B11-0)*0.3668*0.96 -> 140.8512 | D11: =IF($D$2="Nederlands","g / Ca+","g / Ca+") -> g / Ca+ | J11: 0.96
A12: =IF($D$2="Nederlands","Magnesium: (1250-1400ppm)","Magnesium: (1250-1400ppm)") -> Magnesium: (1250-1400ppm) | B12: 1350 | C12: =($B$6/1000)*($B12-($C$13/$B$6)*1000*(24.31/246.482))*(203.306/24.31) -> 555.7485844 | D12: =IF($D$2="Nederlands","g / Mg+","g / Mg+") -> g / Mg+ | F12: =IF($D$2="Nederlands","Gewicht","(Weight") -> Gewicht
A13: =IF($D$2="Nederlands","Mg+Sulfaat:","Mg+Sulphate:") -> Mg+Sulfaat: | B13: 904 | C13: =($B$6/1000)*($B13-0)*(246.482/32.06) -> 695.008509 | D13: =IF($D$2="Nederlands","g / MgSO4","g / MgSO4") -> g / MgSO4 | F13: =SUM(C9:C13) -> 4093.767436 | G13: poeders | K13: foutmarge Ca+ door werkelijke metingen
A14: =IF($D$2="Nederlands","Kalium: (380-420ppm)","Potassium: (380-420ppm)") -> Kalium: (380-420ppm) | B14: 390 | C14: =(B14/390)*($B$6/250)*1000 -> 400 | D14: =IF($D$2="Nederlands","ml / CRS oplossing. Inclusief: Sr, B, I, Mn","ml / CRS solution. Includes: Sr, B, I, Mn") -> ml / CRS oplossing. Inclusief: Sr, B, I, Mn | F14: =C14*1.115 -> 446 | G14: vloeistof | K14: Ca 225 | L14: Ca 425 | M14: Ca 505
A15: =IF($D$2="Nederlands","Strontium: (3-10ppm)","Strontium: (3-10ppm)") -> Strontium: (3-10ppm) | B15: =8/390*$B$14 -> 8 | C15: - | D15: =IF($D$2="Nederlands","g / Ca+","g / Ca+") -> g / Ca+ | F15: =SUM(F13:F14) -> 4539.767436
A16: =IF($D$2="Nederlands","Boor: ( 3,5-4,4ppm)","Boron: (3,5-4,4ppm)") -> Boor: ( 3,5-4,4ppm) | B16: =4/390*$B$14 -> 4 | C16: - | D16: =IF($D$2="Nederlands","g / Ca+","g / Ca+") -> g / Ca+
A17: =IF($D$2="Nederlands","Jodide: (0,06ppm)","Iodide: (0,06ppm)") -> Jodide: (0,06ppm) | B17: =0.06/390*$B$14 -> 0.06 | C17: - | D17: =IF($D$2="Nederlands","g / Ca+","g / Ca+") -> g / Ca+ | I17: alle zouten (inclusief KH en MgSO4) in 1 keer erin gegooid, zonder NaCl: lost goed op!
A18: =IF($D$2="Nederlands","Mangaan: (0,4ppb)","Manganese: (0,4ppb)") -> Mangaan: (0,4ppb) | B18: =0.4/390*$B$14 -> 0.4 | C18: - | D18: =IF($D$2="Nederlands","g / Ca+","g / Ca+") -> g / Ca+ | I18: KH & Ca meting gedaan met en zonder NaCl : geen invloed op waarde bepaling
A19: =IF($D$2="Nederlands","KH+ nooit gelijktijdig met andere zouten (Ca,Mg,K) toevoegen ter voorkoming van neerslag . Toevoegen als alle zouten volledig zijn opgelost.","KH+ may only be added after all salts are fully dissolved (Ca,Mg,K). This is to prevent precipitation of chalk") -> KH+ nooit gelijktijdig met andere zouten (Ca,Mg,K) toevoegen ter voorkoming van neerslag . Toevoegen als alle zouten volledig zijn opgelost.
A20: =IF($D$2="Nederlands","( 1ml CRS Kalium+ vloeistof weegt 1.115gram )","( 1ml CRS Kalium+ liquid Weight 1.115gram )") -> ( 1ml CRS Kalium+ vloeistof weegt 1.115gram )
A22: Calcium recalculation | B22: recalc target | C22: dosing | D22: result (ppm) | F22: recalc | G22: dosing V4 factor 0,96 | J22: Ca
A23: v1 Ca (org) | B23: 440 | C23: 32.28 | D23: 480 | F23: =440/480*C23 -> 29.59 | J23: real
A24: v2 Ca (-55abs) | B24: 220 | C24: 14.1 | D24: 200 | F24: =B24/D24*C24 -> 15.51 | J24: calc
A25: v2 Ca (-55abs) | B25: 440 | C25: 28.24 | D25: 400 | F25: =B25/D25*C25 -> 31.064 | J25: verschil
A26: v3 Ca (factor 0,91) | B26: 505 | C26: 33.71 | D26: 480 | F26: =B26/D26*C26 -> 35.46572917
A27: v4 Ca (factor 0,96) | B27: 440 | C27: 30.99 | D27: 440 | F27: =B27/D27*C27 -> 30.99 | G27: 30.99 | J27: Ca ppm
A29: KH recalculation | B29: recalc target | C29: dosing | D29: result (dkh) | F29: recalc | G29: dosing V4 factor 0,8 | J29: real
A30: v1 KH (org) | B30: 9 | C30: 5.4 | D30: 10.2 | F30: =B30/D30*C30 -> 4.764705882 | J30: calc
A31: v2 KH ( -1,2 abs) | B31: 4.5 | C31: 2.35 | D31: 4.1 | F31: =B31/D31*C31 -> 2.579268293 | H31: =2.35+0.24 -> 2.59 | J31: verschil
A32: v2 KH ( -1,2 abs) | B32: 9 | C32: 4.68 | D32: 9.6 | F32: =B32/D32*C32 -> 4.3875 | H32: =4.68-0.36 -> 4.32 | J32: dhk units
A33: v3 KH (factor 0,8) | B33: 10.2 | C33: 4.9 | D33: 8.2 | F33: =B33/D33*C33 -> 6.095121951 | H33: =4.9+0.48 -> 5.38
A34: v5 KH (factor 0,97) | B34: 9 | C34: 4.32 | D34: 7.6 | F34: =B34/D34*C34 -> 5.115789474 | G34: 5.24 | H34: =4.32+0.9 -> 5.22
A36: CaCl2 bevat KH! | B36: 65ppm Ca extra, levert een stijging van KH op
A37: kh correctie= | B37: Ca (ppm) | C37: Kh deviatie
A38: originele formule | B38: 480 | C38: 1.2
A39: v4 (Ca=440) | B39: 440 | C39: 0.26
J45: 10300 | K45: 33.5
J46: 10700 | K46: =J46/J45*K45 -> 34.80097087
J48: 421 | K48: =J48/J49 -> 0.9568181818 | L48: ati calcium = raw
J49: 440 | K49: =J49*0.96 -> 422.4
J51: 9 | K51: =J51*0.97 -> 8.73 | L51: KH
J52: 8.87 | K52: =J52/J51 -> 0.9855555556

Sheet Saltalc
C1: Nederlands | D1: English
B2: =IF($D$2="Nederlands","Gekozen Taal","Choosen Language") -> Choosen Language | D2: English
A4: =IF($D$2="Nederlands","*** Dutch Synthetic Reefing *** ","*** Dutch Synthetic Reefing ***") -> *** Dutch Synthetic Reefing *** | C4: vers.180601 - compact
A5: =IF($D$2="Nederlands","Zout water calculator","Salt water calculator") -> Salt water calculator | C5: =IF($D$2="Nederlands","Laatste aanpassing","Last modification") -> Last modification
A6: =IF($D$2="Nederlands"," Water volume","Water volume") -> Water volume | B6: =+Calculator!$C$6 -> 100 | C6: =TODAY() -> 2021-07-18
A7: Parameter / range | B7: =IF($D$2="Nederlands","Target waarde","Target value") -> Target value | C7: =IF($D$2="Nederlands","Nieuwe aanmaak","New water") -> New water | D7: =IF($D$2="Nederlands","eenheid / Grondstof","Units / Product") -> Units / Product
A8: =IF($D$2="Nederlands","Puur osmose water (0ppt) - geen silicaat!","Pure RO water (0ppt) - No silicate!") -> Pure RO water (0ppt) - No silicate! | C8: =($B$6)*(1-0.0166) -> 98.34 | D8: Liters
A9: =IF($D$2="Nederlands","Saliniteit: (33-34ppt) ","Salinity: (33-34ppt)") -> Salinity: (33-34ppt) | B9: 33 | C9: =($B$6/100)*($B9-0)*100*(27.2656/35) -> 2570.756571 | D9: =IF($D$2="Nederlands","g / NaCl+","g / NaCl+") -> g / NaCl+
A10: =IF($D$2="Nederlands","KH: (7-9dKH)","KH: ( 7-9dKH)") -> KH: ( 7-9dKH) | B10: 9 | C10: =($B$6/100)*($B10-0)*3 -> 27 | D10: =IF($D$2="Nederlands","g / KH+","g / KH+") -> g / KH+
A11: =IF($D$2="Nederlands","Calcium: ( 420-460ppm)","Calcium: (420-460ppm) ") -> Calcium: (420-460ppm) | B11: 440 | C11: =($B$6/100)*($B11-0)*0.3668 -> 161.392 | D11: =IF($D$2="Nederlands","g / Ca+","g / Ca+") -> g / Ca+
A12: =IF($D$2="Nederlands","Magnesium:(1250-1400ppm)","Magnesium: (1250-1400ppm)") -> Magnesium: (1250-1400ppm) | B12: 1350 | C12: =($B$6/1000)*($B12-($C$13/$B$6)*1000*(24.31/246.482))*(203.306/24.31) -> 555.7485844 | D12: =IF($D$2="Nederlands","g / Mg+","g / Mg+") -> g / Mg+
A13: =IF($D$2="Nederlands","Mg+Sulfaat:","Mg+Sulphate:") -> Mg+Sulphate: | B13: 904 | C13: =($B$6/1000)*($B13-0)*(246.482/32.06) -> 695.008509 | D13: =IF($D$2="Nederlands","g / MgSO4","g / MgSO4") -> g / MgSO4
A14: =IF($D$2="Nederlands","Kalium - vloeibaar: (380-420ppm)","Potassium- liquid: (380-420ppm)") -> Potassium- liquid: (380-420ppm) | B14: 390 | C14: =($B$6/100)*($B14-0)*0.667*1 -> 260.13 | D14: =IF($D$2="Nederlands","ml / K+","ml / K+") -> ml / K+
A15: =IF($D$2="Nederlands","Strontium: (3-10ppm)","Strontium: (3-10ppm)") -> Strontium: (3-10ppm) | B15: 8 | C15: =($B$6/100)*($B15-0)*3.04 -> 24.32 | D15: ml / Sr+
A16: =IF($D$2="Nederlands","Boor: ( 3,5-4,4ppm)","Boron: (3,5-4,4ppm)") -> Boron: (3,5-4,4ppm) | B16: 4 | C16: =($B$6/100)*($B16-0)*12.68 -> 50.72 | D16: =IF($D$2="Nederlands","ml / B+","ml / B+") -> ml / B+
A17: =IF($D$2="Nederlands","Jodide: (0,06ppm)","Iodide: (0,06ppm)") -> Iodide: (0,06ppm) | B17: 0.06 | C17: =($B$6/100)*($B17-0)*100*0.26 -> 1.56 | D17: =IF($D$2="Nederlands","ml / I+ ","ml / I+") -> ml / I+
A18: =IF($D$2="Nederlands","Mangaan: (0,4ppb)","Manganese: (0,4ppb)") -> Manganese: (0,4ppb) | B18: 0.4 | C18: =($B$6/100)*($B18-0)*10*0.1 -> 0.4 | D18: =IF($D$2="Nederlands","ml / Mn+","ml / Mn+") -> ml / Mn+
A19: =IF($D$2="Nederlands","Fosfaat: ( 0,04-0,08ppm)","Phosphate: (0,04-0,08ppm)") -> Phosphate: (0,04-0,08ppm) | B19: 0.04 | C19: =($B$6/100)*($B19-0)*100*0.1*0 -> 0 | D19: ml / PO4+
A20: =IF($D$2="Nederlands","Nitraat: (1-3ppm)","Nitrate: (1-3ppm)") -> Nitrate: (1-3ppm) | B20: 2.5 | C20: =($B$6/100)*($B20-0)*0.8*0 -> 0 | D20: ml / NO3+
A21: =IF($D$2="Nederlands","Ijzer: (0,02-0,15ppm)","Iron: (0,02-0,15ppm)") -> Iron: (0,02-0,15ppm) | B21: 0.02 | C21: =($B$6/100)*(VALUE($B21)-0)*10*0.4975*0 -> 0 | D21: ml / Fe+
A22: =IF($D$2="Nederlands","KH+ nooit gelijktijdig met andere zouten (Ca,Mg,K,Sr) toevoegen ter voorkoming van neerslag . Toevoegen als alle zouten volledig zijn opgelost.","KH+ may only be added after all salts are fully dissolved (Ca,Mg,K,Sr). This is to prevent precipitation of chalk.") -> KH+ may only be added after all salts are fully dissolved (Ca,Mg,K,Sr). This is to prevent precipitation of chalk.
A23: =IF($D$2="Nederlands","Alleen de macro elementen t/m boor zijn vereist voor correcties. Spore elementen kunnen in het aquarium zelf worden aangevuld.","only the macro elements down to boron are neccessary when mixing a batch of water for corrections. Trace elements can be added into the tank.") -> only the macro elements down to boron are neccessary when mixing a batch of water for corrections. Trace elements can be added into the tank.
A24: =IF($D$2="Nederlands","Alleen puur osmose water gebruiken met nihil slicaat. Gebruik een TDS meter op de in- en uitgang van de DI filter, of meet de TDS waarde voor het gebruik.","Only use pure RO water with zero silicate. Use a TDS meter to monitor DI filter in- and output or measure TDS of the RO water before use.") -> Only use pure RO water with zero silicate. Use a TDS meter to monitor DI filter in- and output or measure TDS of the RO water before use.

Sheet SG2
A2: SG Converter (for DSR solutions) | C2: v.210507 | I2: ORIGINEEL
A3: Choose Container | B3: 500ml | C3: =IF($B$3="use cup",B4,IF($B$3="500ml",J13,IF($B$3="1000ml",J14,IF($B$3="Can 5L",J15,IF($B$3="Can 10L",J16,IF($B$3="x","0",IF($B$3="X","0"))))))) -> 28 | F3: (gram) | G3: (ml)
A4: measuring cup (optional) | B4: 0 | C4: grams
A5: Choose conversion | B5: (ml's) | C5: =IF($B$5="(ml's)","(grams) incl. container",IF($B$5="(grams) incl. container","(ml's)")) -> (grams) incl. container | E5: sg
A6: EZCarbon | B6: 1 | C6: =IF($B$5="(ml's)",(B6*E6)+$C$3,IF($B$5="(grams) incl. container",(B6-$C$3)/E6)) -> 29.0227 | E6: 1.0227 | F6: 1 | G6: =F6/1.0227 -> 0.9778038525 | I6: (ml's)
A7: EZBuffer | B7: 1 | C7: 29.091 | E7: 1.091 | F7: 10860 | G7: =F7/1.091 -> 9954.170486 | I7: (grams) incl. container
A8: EZCalcium | B8: 1 | C8: 29.365 | E8: 1.365 | F8: 7050 | G8: =F8/1.365 -> 5164.835165
A9: EZTrace | B9: 1 | C9: 29.194 | E9: 1.194 | F9: 1 | G9: =F9/1.194 -> 0.837520938 | J9: normal | K9: un
A10: EZ2Go | B10: 1 | C10: 29.08 | E10: 1.08 | F10: 1 | G10: =F10/1.194 -> 0.837520938 | J10: normal | K10: un
A11: PH+ | B11: 1 | C11: 29.091 | E11: 1.091 | F11: 1 | G11: =F11/1.091 -> 0.9165902841
A12: KH+ | B12: 1 | C12: 29.057 | E12: 1.057 | F12: 1 | G12: =F12/1.057 -> 0.9460737938 | I12: use cup | J12: 0
A13: Ca+ | B13: 1 | C13: 29.381 | E13: 1.381 | F13: 1 | G13: =F13/1.381 -> 0.7241129616 | I13: 500ml | J13: 28
A14: CaSr+ | B14: 1 | C14: 29.395 | E14: 1.395 | F14: 1 | G14: =F14/1.395 -> 0.7168458781 | I14: 1000ml | J14: 50
A15: Mg+ | B15: 1 | C15: 29.257 | E15: 1.257 | F15: 1 | G15: =F15/1.257 -> 0.7955449483 | I15: Can 5L | J15: 215 | K15: 280
A16: K+ | B16: 1 | C16: 29.1562 | E16: 1.1562 | F16: 1 | G16: =F16/1.16 -> 0.8620689655 | I16: Can 10L | J16: 380 | K16: 430
A17: Sr+ | B17: 1 | C17: 29.0525 | E17: 1.0525 | F17: 1 | G17: =F17/1.0525 -> 0.9501187648 | I17: JC cap | J17: 19
A18: B+ | B18: 1 | C18: 29.0175 | E18: 1.0175 | F18: 1 | G18: =F18/1.0175 -> 0.9828009828 | I18: KV cap | J18: 6.4
A19: I2+ | B19: 1 | C19: 29.005 | E19: 1.005 | F19: 1 | G19: =F19/1.001 -> 0.999000999
A20: Mn+ | B20: 1 | C20: 29.0031 | E20: 1.0031 | F20: 1 | G20: =F20/1.001 -> 0.999000999
A21: PO4+ | B21: 1 | C21: 29.014 | E21: 1.014 | F21: 1 | G21: =F21/1.001 -> 0.999000999
A22: 2xNO3+ rev 2019 | B22: 1 | C22: 29.136 | E22: 1.136 | F22: 1 | G22: =F22/1.136 -> 0.8802816901
A23: CarbonVS | B23: 1 | C23: 29.0357 | E23: 1.0357 | F23: 1 | G23: =F23/1.0357 -> 0.965530559
A24: Fe+ | B24: 1 | C24: 29.147 | E24: 1.147 | F24: 1 | G24: =F24/1.147 -> 0.8718395815
A25: Fe-Trace | B25: 1 | C25: 29.183 | E25: 1.183 | F25: 1 | G25: =F25/1.183 -> 0.8453085376
A26: Fluor+ | B26: 1 | C26: =IF($B$5="(ml's)",B26*E26,IF($B$5="(grams)",B26/E26)) -> 1.025 | E26: 1.025 | F26: 1 | G26: =F26/1.025 -> 0.9756097561

Sheet EZCalc2
A1: original
A2: Nederlands | B2: English | C2: Deutsch | D2: Français | E2: Español | F2: Português | G2: Slovenščina
A3: =IF($E$3="Nederlands","EZ-DSR Calculator",IF($E$3="English","EZ-DSR Calculator",IF($E$3="Deutsch","EZ-DSR Calculator",IF($E$3="Français","EZ-DSR Calculator",IF($E$3="Español","EZ-DSR Calculator",IF($E$3="Português","Calculadora EZ-DSR",IF($E$3="Slovenščina","EZ-DSR Kalkulator"))))))) -> EZ-DSR Calculator | C3: v.200406 | E3: English
A4: =IF($E$3="Nederlands","Calibration ratio",IF($E$3="English","Calibration ratio",IF($E$3="Deutsch","Calibration ratio",IF($E$3="Français","Calibration ratio",IF($E$3="Español","Calibration ratio",IF($E$3="Português","Rácio de Calibração",IF($E$3="Slovenščina","Kalibracijsko razmerje"))))))) -> Calibration ratio | D4: 1 | E4: (ml/sec) | F4: (ml/ml)
A5: =IF($E$3="Nederlands","Volume (L)",IF($E$3="English","Volume (L)",IF($E$3="Deutsch","Volumen (L)",IF($E$3="Français","Volume (L)",IF($E$3="Español","Volumen (L)",IF($E$3="Português","Volume (L)",IF($E$3="Slovenščina","Volumen (L)"))))))) -> Volume (L) | B5: 100 | D5: =IF($E$3="Nederlands","Aantal dagen tussen metingen",IF($E$3="English","Days between measurements",IF($E$3="Deutsch","Tage zwischen den Messungen",IF($E$3="Français","Jours entre les mesures",IF($E$3="Español","Días entre mediciones",IF($E$3="Português","Dias entre Medições",IF($E$3="Slovenščina","Dni med merjanjem"))))))) -> Days between measurements | F5: 1 | G5: =IF($E$3="Nederlands","pump setting",IF($E$3="English","pump setting",IF($E$3="Deutsch","pump setting",IF($E$3="Français","pump setting",IF($E$3="Español","pump setting",IF($E$3="Português","Definições Bomba Dosagem")))))) -> pump setting | H5: =IF($E$3="Nederlands","Cor. Gewicht (gr)",IF($E$3="English","Cor. Weight (gr)",IF($E$3="Deutsch","Kor. Gewicht (gr)",IF($E$3="Français","Cor. Poids (gr)",IF($E$3="Español","Cor. Peso (gr)",IF($E$3="Português","Peso de Correcção (gr)",IF($E$3="Slovenščina","Popra-vek teža (gr)"))))))) -> Cor. Weight (gr) | I5: Ca/Kh ratio (native) | K5: SG
A6: =IF($E$3="Nederlands","Produkt",IF($E$3="English","Product",IF($E$3="Deutsch","Product",IF($E$3="Français","Product",IF($E$3="Español","Product",IF($E$3="Português","Produto",IF($E$3="Slovenščina","Izdelek"))))))) -> Product | B6: =IF($E$3="Nederlands","Waarde",IF($E$3="English","Value",IF($E$3="Deutsch","Wert",IF($E$3="Français","Valeur",IF($E$3="Español","Valor",IF($E$3="Português","Valor",IF($E$3="Slovenščina","Vred-nost"))))))) -> Value | C6: =IF($E$3="Nederlands","Doel",IF($E$3="English","Setpoint",IF($E$3="Deutsch","SollWert",IF($E$3="Français","But",IF($E$3="Español","punto fijo",IF($E$3="Português","Objec-tivo",IF($E$3="Slovenščina","Končna vrednost"))))))) -> Setpoint | D6: dkh / ppm | E6: =IF($E$3="Nederlands","Correctie / start (ml)",IF($E$3="English","Correction (ml)",IF($E$3="Deutsch","Korrektur (ml)",IF($E$3="Français","Correction (ml)",IF($E$3="Español","Corrección (ml)",IF($E$3="Português","Correcção (ml)",IF($E$3="Slovenščina","Popravek (ml)"))))))) -> Correction (ml) | F6: =IF($E$3="Nederlands","Dagelijks (ml)",IF($E$3="English","Daily (ml)",IF($E$3="Deutsch","Täglich (ml)",IF($E$3="Français","Quotidien (ml)",IF($E$3="Español","Diario (ml)",IF($E$3="Português","Consumo Diário (ml)",IF($E$3="Slovenščina","Dnevno (ml)"))))))) -> Daily (ml) | H6: =IF($E$3="Nederlands","Liters",IF($E$3="English","Liters",IF($E$3="Deutsch","Liter",IF($E$3="Français","litres",IF($E$3="Español","Litros"))))) -> Liters
A7: EZ-Buffer | B7: x | C7: 9 | D7: =IF($B$7="x",0.24,C7-B7) -> 0.24 | E7: =($B$5/100)*$D$7*16.7 -> 4.008 | F7: =+$E$7/$F$5 -> 4.008 | G7: =F7/$D$4 -> 4.008 | H7: =E7*K7 -> 4.372728 | I7: =D8/D7 -> 5.8 | K7: 1.091
A8: EZ-Calcium | B8: x | C8: 440 | D8: =IF($B$8="x",(5.8*D7),C8-B8) -> 1.392 | E8: =($B$5/100)*$D$8*0.578 -> 0.804576 | F8: =+$E$8/$F$5 -> 0.804576 | G8: =F8/$D$4 -> 0.804576 | H8: 1.09824624 | I8: Buf/Cal ratio | K8: 1.365
A9: EZ-Trace | B9: max. | C9: =6*(B5/100) -> 6 | D9: - | E9: =E8/2 -> 0.402288 | F9: =F8/2 -> 0.402288 | G9: 0.402288 | H9: 0.480331872 | K9: 1.194
A10: PO4+ | B10: 0 | D10: 0.007 | E10: =($B$5/100)*(D10-B10)*100*0.1 -> 0.07 | F10: =+E10 -> 0.07 | G10: 0.07 | H10: 0
A11: NO3+ | B11: 0 | D11: 0.1 | E11: =($B$5/100)*(D11-B11)*1.44 -> 0.144 | F11: =+E11 -> 0.144 | G11: 0.144 | H11: 0
A12: EZ-Carbon | B12: max. | C12: =($B$5/100)*$E$39 -> 12.38347284 | D12: D3 | E12: =IF(D12="D1",($B$5/100)*E25,IF(D12="D2",($B$5/100)*E26,IF(D12="D3",($B$5/100)*E27,IF(D12="D4",($B$5/100)*E28,IF(D12="D5",($B$5/100)*E29,IF(D12="D6",($B$5/100)*E30,IF(D12="D7",($B$5/100)*E31,IF(D12="D8",($B$5/100)*E32,IF(D12="D9",($B$5/100)*E33,IF(D12="D10",($B$5/100)*E34,IF(D12="D11",($B$5/100)*E35,IF(D12="D12",($B$5/100)*E36,IF(D12="D13",($B$5/100)*E37,IF(D12="D14",($B$5/100)*E38,IF(D12="D15",($B$5/100)*E39))))))))))))))) -> 1.44 | F12: =+E12 -> 1.44 | G12: 1.44 | H12: 1.472688 | I12: =E7/E8 -> 4.981505787 | K12: 1.0227
A13: Amino/C (weekly dose) | E13: =(B5/100)*1 -> 1 | F13: =+E13 -> 1 | G13: ml
A14: =IF($E$3="Nederlands","indien nodig, start dosering berekenen door bij waarde * in te vullen. Correcties en (dagelijks)verbruik berekenen door de gemeten waarde en het aantal dagen vanaf de laatste meting in te vullen. ",IF($E$3="English","When required, calculate startdosing by typing x at Value. Corrections and (daily) consumption can be calculated by submitting the measured value and the day between measurements.",IF($E$3="Deutsch","Berechnen Sie bei Bedarf die Startdosierung, indem Sie x bei Wert eingeben. Korrekturen und (Tages-) Verbrauch können berechnet werden, indem der Messwert und der Tag zwischen den Messungen übermittelt werden.",IF($E$3="Français","Au besoin, calculez le début de la dose en tapant x comme valeur. Les corrections et la consommation (journalière) peuvent être calculées en soumettant la valeur mesurée et le jour entre les mesures.",IF($E$3="Español","Cuando sea necesario, calcule la dosificación inicial escribiendo x en Value. Las correcciones y el consumo (diario) pueden calcularse enviando el valor medido y el día entre mediciones.",IF($E$3="Português","Quando necessário, calcule a dose inicial digitando x em Valor. Valores de correcção e consumo diário, podem ser calculados usando os valores medidos(resultado do teste de água) e os dias entre medições.",IF($E$3="Slovenščina","Po potrebi izračunajte začetno odmerjanje tako, da vtipkate x pri vrednosti. Popravke in (dnevno) porabo lahko izračunate tako, da dodate izmerjeno vrednost in dan med meritvami."))))))) -> When required, calculate startdosing by typing x at Value. Corrections and (daily) consumption can be calculated by submitting the measured value and the day between measurements.
A15: =IF($E$3="Nederlands","EZ Buffer/EZCalcium ratio = 5:1 (ml). Deze verhouding kan aangepast worden aan het werkelijk verbruik.",IF($E$3="English","EZ Buffer / EZCalcium ratio = 5:1 (ml). This ratio can be adjusted to the actual consumption.",IF($E$3="Deutsch","EZ-Buffer / EZCalcium Verhältnis = 5:1 (ml). Dieses Verhältnis kann an den tatsächlichen Verbrauch angepasst werden.",IF($E$3="Français","Rapport tampon EZ / EZCalcium = 5:1 (ml). Ce ratio peut être ajusté à la consommation réelle.",IF($E$3="Español","EZ Buffer / EZCalcium ratio = 5:1 (ml). Esta relación se puede ajustar al consumo real.",IF($E$3="Português","EZ Buffer / EZ Calcium ratio = 5:1(ml). Este rácio pode ser ajustado tendo em conta o atual consumo. ",IF($E$3="Slovenščina","Razmerje EZ Buffer / EZ Calcium = 5: 1 (ml). To razmerje je mogoče prilagoditi dejanski porabi."))))))) -> EZ Buffer / EZCalcium ratio = 5:1 (ml). This ratio can be adjusted to the actual consumption.
A16: =IF($E$3="Nederlands","EZ-Trace = 50% van EZ-Calcium. (of werkelijk verbruik) ",IF($E$3="English","EZ-Trace = 50% of EZ-Calcium. (or actual consumption)",IF($E$3="Deutsch","EZ-Trace = 50% oder EZ-Calcium. (oder tatsächlicher Verbrauch)",IF($E$3="Français","EZ-Trace = 50% ou EZ-Calcium. (ou consommation réelle)",IF($E$3="Español","EZ-Trace = 50% o EZ-Calcium. (o consumo real)",IF($E$3="Português","EZ-Trace = 50% ou EZ-Cálcio. (ou consumo real)",IF($E$3="Slovenščina","EZ-sled = 50% ali EZ-kalcij. (ali dejanska poraba)"))))))) -> EZ-Trace = 50% of EZ-Calcium. (or actual consumption)
A17: =IF($E$3="Nederlands","(1) Verspreid de geadviseerde correcties over meerdere dagen. (2) Vermeerdert de huidige dosering met de berekende dagelijks dosering.",IF($E$3="English","(1) Spread the recommended corrections over several days. (2) Increase the current dose by the calculated daily dose.",IF($E$3="Deutsch","(1) Verteilen Sie die empfohlenen Korrekturen auf mehrere Tage. (2) Erhöhen Sie die aktuelle Dosis um die berechnete Tagesdosis.",IF($E$3="Français","(1) Répartissez les corrections recommandées sur plusieurs jours. (2) Augmentez la dose actuelle de la dose quotidienne calculée.",IF($E$3="Español","(1) Extienda las correcciones recomendadas durante varios días. (2) Aumente la dosis actual en la dosis diaria calculada.",IF($E$3="Português","(1) Espalhe as correções recomendadas por vários dias. (2) Aumente a dose atual pela dose diária calculada.",IF($E$3="Slovenščina","(1) Priporočljive popravke razmažite po več dneh. (2) Povečajte trenutni odmerek za izračunani dnevni odmerek."))))))) -> (1) Spread the recommended corrections over several days. (2) Increase the current dose by the calculated daily dose.
A18: =IF($E$3="Nederlands","Correcties brengen de waarden op peil en kunnen het eenvoudigst met FullDSR producten worden uitgevoerd.",IF($E$3="English","Corrections bring the values up to date and are easiest to do with FullDSR products.",IF($E$3="Deutsch","Korrekturen bringen die Werte auf den neuesten Stand und sind mit FullDSR-Produkten am einfachsten durchzuführen.",IF($E$3="Français","Les corrections apportent les valeurs à jour et sont plus faciles à faire avec les produits FullDSR.",IF($E$3="Español","Las correcciones actualizan los valores y son más fáciles de hacer con los productos FullDSR.",IF($E$3="Português","As correções atualizam os valores e são mais fáceis de fazer com os produtos FullDSR.",IF($E$3="Slovenščina","Popravki posodabljajo vrednosti in jih je najlažje narediti pri izdelkih FullDSR."))))))) -> Corrections bring the values up to date and are easiest to do with FullDSR products.
A19: =IF($E$3="Nederlands","EZ-Carbon dosering opvoeren (D1-15), totdat PO4 en NO3 onder controle zijn. Verlaagd de dosering als het doel bereikt is. (Maak gebruik CarbonVS indien PO4 onmeetbaar is).",IF($E$3="English","Increase EZ-Carbon dosage (D1-15) until PO4 and NO3 are under control. Decrease when target is reached. (Use CarbonVS if PO4 is immeasurable).",IF($E$3="Deutsch","Erhöhen Sie die EZ-Carbon Dosierung (D1-15), bis PO4 und NO3 unter Kontrolle sind. (Verwenden Sie CarbonVS, wenn PO4 nicht messbar ist).",IF($E$3="Français","Augmentez la dose de EZ-Carbon (D1-15) jusqu'à ce que PO4 et NO3 soient sous contrôle. (Utilisez CarbonVS si PO4 est incommensurable).",IF($E$3="Español","Aumente la dosis de EZ-Carbon (D1-15) hasta que PO4 y NO3 estén bajo control. (Use CarbonVS si PO4 no se puede medir).",IF($E$3="Português","Incremente a dosagem de EZ-Carbon (D1-15) até PO4 e NO3 estarem sob controlo. Decremente o valor da dosagem assim que atingir o objectivo. (Use CarbonVS se PO4 for incomensurável). ",IF($E$3="Slovenščina","Povečajte odmerek EZ-Carbon (D1-15), dokler nista PO4 in NO3 pod nadzorom. Zmanjšajte, ko je cilj dosežen. (Uporabite CarbonVS, če je PO4 neizmerljiv)."))))))) -> Increase EZ-Carbon dosage (D1-15) until PO4 and NO3 are under control. Decrease when target is reached. (Use CarbonVS if PO4 is immeasurable).
A20: =IF($E$3="Nederlands","Calibration ratio is om instelling te berekenen die afwijken van de 1:1 ml/ml of ml/s verhouding.",IF($E$3="English","Calibration ratio is to calculate setting that deviate from the 1:1 ml /ml or ml /s ratio.",IF($E$3="Deutsch","Das 'Calibration ratio' dient zur Berechnung der Einstellung, die von dem Verhältnis 1:1 ml / ml oder ml /s abweicht.",IF($E$3="Français","Le 'Calibration ratio' consiste à calculer un réglage qui s'écarte du rapport 1:1 ml / ml ou ml /s.",IF($E$3="Español","'Calibration ratio' es calcular una configuración que se desvía de la relación 1:1 ml /ml o ml /s.",IF($E$3="Português","O rácio de calibração é calculado através do relação 1:1 ml/ml ou ml/s ",IF($E$3="Slovenščina","Kalibracijsko razmerje je izračunavanjedoziranj, ki odstopajo od razmerja 1:1 ml/ml ali ml/s."))))))) -> Calibration ratio is to calculate setting that deviate from the 1:1 ml /ml or ml /s ratio.
A21: =IF($E$3="Nederlands","De EZ calculator is niet noodzakelijk, maar kan gebruikt worden om (start) doseringen te berekenen",IF($E$3="English","The EZ calculator is not necessary, but can be used to calculate (start) dosages",IF($E$3="Deutsch","Der EZ-Rechner ist nicht notwendig, kann aber zur Berechnung von (Start-) Dosierungen verwendet werden",IF($E$3="Français","La calculatrice EZ n'est pas nécessaire, mais peut être utilisée pour calculer (démarrer) des dosages",IF($E$3="Español","La calculadora EZ no es necesaria, pero se puede usar para calcular (comenzar) las dosis",IF($E$3="Português","A calculadora EZ não é extritamente necessária, mas poderá ser utilizada para calcular as dosagens de arranque. ",IF($E$3="Slovenščina","EZ Kalkulator ni potreben, vendar ga je mogoče uporabiti za izračun (začetnih) odmerkov"))))))) -> The EZ calculator is not necessary, but can be used to calculate (start) dosages
A22: =IF($E$3="Nederlands","Verplicht lezen",IF($E$3="English","Mandatory reading",IF($E$3="Deutsch","Pflichtlektüre",IF($E$3="Français","Lecture obligatoire",IF($E$3="Español","Lectura obligatoria",IF($E$3="Português","Leitura obrigatória",IF($E$3="Slovenščina","Obvezno branje"))))))) -> Mandatory reading
A23: =IF($E$3="Nederlands","EZ Calculator 2.0 discussie topic",IF($E$3="English","EZ Calculator 2.0 discussion topic",IF($E$3="Deutsch","Diskussionsthema zu EZ Calculator 2.0",IF($E$3="Français","Sujet de discussion EZ Calculator 2.0",IF($E$3="Español","Tema de discusión de EZ Calculator 2.0",IF($E$3="Português","EZ Calculator 2.0 Forúm de Discussão",IF($E$3="Slovenščina","EZ Kalkulator 2.0 tema na Forumu"))))))) -> EZ Calculator 2.0 discussion topic
D25: D1 | E25: 1
D26: D2 | E26: =E25*1.2 -> 1.2
D27: D3 | E27: =E26*1.2 -> 1.44
D28: D4 | E28: 1.728
D29: D5 | E29: 2
D30: D6 | E30: 2.4
D31: D7 | E31: 2.88
D32: D8 | E32: 3.456
D33: D9 | E33: 4.1472
D34: D10 | E34: 4.97664
D35: D11 | E35: 5.971968
D36: D12 | E36: 7.1663616
D37: D13 | E37: 8.59963392
D38: D14 | E38: 10.3195607
D39: D15 | E39: 12.38347284

Sheet CompactCalc
B2: Liquid ? | C2: Y | D2: DSR Compact v.200713 | O2: =IF($C$2="Y","EZCalcium","Ca+ / 420-460") -> EZCalcium
B3: Volume (L) | C3: 100
B4: Product / range | C4: Value | D4: Target | E4: Dosing | F4: Unit | J4: liquid | K4: solid | L4: ratio
B5: NaCl / 32-35 (ppt) | C5: 34 | D5: 33 | E5: =($C$3/100)*(D5-C5)*100 -> -100 | F5: gram | I5: Y
B6: PH+ (2x) / 7-9 | C6: 7 | D6: 9 | E6: =($C$3/100)*(D6-C6)*3*11.1/2 -> 33.3 | F6: ml | I6: N
B7: KH+ / 7-9 | C7: 7 | D7: 9 | E7: =IF($C$2="Y",($C$3/100)*(D7-C7)*3*11.1,($C$3/100)*(D7-C7)*3) -> 66.6 | F7: =IF($C$2="Y", "ml","gram") -> ml
B8: =IF($C$2="Y","EZCalcium","Ca+ / 420-460") -> EZCalcium | C8: 420 | D8: 440 | E8: =IF($C$2="Y", ($C$3/100)*(D8-C8)*0.578,($C$3/100)*(D8-C8)*0.3668) -> 11.56 | F8: =IF($C$2="Y", "ml","gram") -> ml
B9: Mg+ / 1250-1400 | C9: 1250 | D9: 1350 | E9: =IF($C$2="Y", ($C$3/100)*(D9-C9)*0.836*1.33,($C$3/100)*(D9-C9)*0.836) -> 111.188 | F9: =IF($C$2="Y", "ml","gram") -> ml
B10: MgSO4+ | C10: 1250 | D10: 1350 | E10: =IF($C$2="Y", ($C$3/100)*(D10-C10)*0.836*1.33,($C$3/100)*(D10-C10)*1.01389) -> 111.188 | F10: =IF($C$2="Y", "ml","gram") -> ml
B11: K+ rev1 / 380-420 | C11: 380 | D11: 390 | E11: =IF($C$2="Y",($C$3/100)*(D11-C11)*0.7,($C$3/100)*(D11-C11)*0.190476) -> 7 | F11: =IF($C$2="Y", "ml","gram") -> ml | J11: =($C$3/100)*(D11-C11)*0.7 -> 7 | K11: =($C$3/100)*(D11-C11)*0.190476 -> 1.90476 | L11: =J11/K11 -> 3.675003675
B12: Sr+ / 3-10 | C12: 3 | D12: 10 | E12: =($C$3/100)*(D12-C12)*3 -> 21 | F12: ml
B13: B+ / 3-5 | C13: 3 | D13: 5 | E13: =($C$3/100)*(D13-C13)*12.68 -> 25.36 | F13: ml
B14: I2+ / 0,03-0,06 | C14: 0.03 | D14: 0.06 | E14: =($C$3/100)*(D14-C14)*100*0.26 -> 0.78 | F14: ml
B15: Mn+ (<0,1ppb/d) | C15: 0 | D15: 0.1 | E15: =($C$3/100)*(D15-C15)*10*0.1 -> 0.1 | F15: ml
B16: PO4+ / 0,04-0,08 | C16: 0.01 | D16: 0.06 | E16: =($C$3/100)*(D16-C16)*100*0.1 -> 0.5 | F16: ml
B17: 2xNO3+ rev2 / 1-3 | C17: 1.5 | D17: 2.5 | E17: =($C$3/100)*(D17-C17)*(0.8) -> 0.8 | F17: ml
B18: Fe (< 0,15ppm/d) | C18: 0 | D18: 0.15 | E18: =($C$3/100)*(D18-C18)*10*0.4975 -> 0.74625 | F18: ml
B19: CarbonVS (average daily dose) | E19: =(C3/100)*0.5 -> 0.5 | F19: ml
B20: Amino/C (weekly dose) | E20: =(C3/100)*1 -> 1 | F20: ml
B21: NaCl surplus correction rate (%) | E21: 35 | F21: =100+E21 -> 135
B22: Saltwater to be removed | E22: =-(E5/(D5*F21)*100) -> 2.244668911 | F22: liters
B23: mobilescreen: tap on yellow fields until keyboard appear
